Workbook

Sheet Summary
B1: Data shown is for your reference only - Please insert data as per your company details in the cells highlighted in "YELLOW" color
B2: Please don’t enter any value in "GREY" marked field
B4: Nature of Project ( New Project / Expansion Project) | C4: Expansion Project
B6: Category of Industry (Manufacturing / Services / Allied Business) | C6: Allied Businesses
B8: Category of Scheme | C8: VCF-SC-SC Male
B10: Particulars | C10: Values
B11: Share Capital at the beginning | C11: 1
B12: Previous Assets( If any Held with the company) | C12: 50
B13: Tenure of Financial Assistance required(In Years) (Max 10 years) | C13: 10
B14: Moratorium Period required( In months) (Max 36 months) | C14: 36
B15: Date of application submission | C15: 2022-09-29
B17: Project Cost *( as mentioned in Project Cost Screen) | C17: In Rs. Lakhs
B18: Land Cost (if available in the name of the company) | C18: 50
B19: Land Development (if any) | C19: 10
B20: Technical Civil works (Building / Premises) | C20: 100
B21: Plant and Machineries (Complete Unit Set Up) | C21: 200
B22: Other Fixed Assets | C22: 30
B23: Electrification Cost | C23: 5
B24: Furnitures, Fixtures, Computers, etc. | C24: 5
B25: IT Infrastructure - Hardwares (For Software / Service Companies) | C25: 0
B26: IT Infrastructure - Softwares (For Software / Service Companies) | C26: 0
B27: IT - Content Developments (For Software / Service Companies) | C27: 0
B28: Any other Costs (like Marketing, Advertisments, Digital Advt. etc) | C28: 0
B29: Pre-Operative Expenditure( as mentioned in Project Cost Screen) | C29: 50
B30: Margin Money for Working Capital (25% of Total Working Capital Funds Required in the project) | C30: 50
B31: Interest During Construction Period | C31: 21
B32: Total Project Cost | C32: =SUM(C18:C31) -> 521
B34: Total Fixed Cost ( including Land Cost if any) *( as mentioned in Project Cost Screen) | C34: =SUM(C18:C25) -> 400
B36: Means of Finance *( as mentioned in Means of Finance Screen) | C36: In Rs. Lakhs
B37: Promoter’s Contribution in Equity | C37: 112.5
B38: Venture Capital funds contribution in Equity | C38: 1
B39: Venture Capital funds contribution in Debentures (OCDs) | C39: 336.5
B40: Front End Subsidy (From Authority) (if any) | C40: 71
B41: Term Loan from Banks / Financial Institutions (if any) | C41: 0
B42: Total Means of Finances | C42: =SUM(C37:C41) -> 521
B44: Assumptions of Finanical Projections for 10 Years
B46: Sales Assumptions (Please Add Rows if required)
B48: Assumptions | C48: Values
B49: No. of operational days in a month | C49: 22
B50: Days of operation in a year | C50: =C49*12 -> 264
B51: Daily Sales(For Manufacturing Sector) or Daily Services rendered (For Service Sector) (In units) | C51: 900
B52: Installed Capacity
B53: Selling Price per Unit
B54: Increament % of Selling price
B58: Particulars | C58: FY | D58: At Full Capacity | E58: Year 1 | F58: Year 2 | G58: Year 3 | H58: Year 4 | I58: Year 5 | J58: Year 6 | K58: Year 7 | L58: Year 8 | M58: Year 9 | N58: Year 10
B59: Capacity Utilization | C59: % | D59: =100%*1 -> 1 | E59: 0.25 | F59: 0.45 | G59: 0.5 | H59: 0.55 | I59: 0.6 | J59: 0.65 | K59: 0.7 | L59: 0.75 | M59: 0.75 | N59: 0.75
B60: Sale Price per Unit | C60: Rs. Per Unit | D60: 4150 | E60: 4150 | F60: 4200 | G60: 4200 | H60: 4250 | I60: 4250 | J60: 4300 | K60: 4300 | L60: 4350 | M60: 4350 | N60: 4350
B61: Income from New Products | C61: Rs. in Lakh | D61: =((D60*Summary!$C$51*D59)/100000)*Summary!$C$50 -> 9860.4 | E61: =((E60*Summary!$C$51*E59)/100000)*Summary!$C$50 -> 2465.1 | F61: =((F60*Summary!$C$51*F59)/100000)*Summary!$C$50 -> 4490.64 | G61: =((G60*Summary!$C$51*G59)/100000)*Summary!$C$50 -> 4989.6 | H61: =((H60*Summary!$C$51*H59)/100000)*Summary!$C$50 -> 5553.9 | I61: =((I60*Summary!$C$51*I59)/100000)*Summary!$C$50 -> 6058.8 | J61: =((J60*Summary!$C$51*J59)/100000)*Summary!$C$50 -> 6640.92 | K61: =((K60*Summary!$C$51*K59)/100000)*Summary!$C$50 -> 7151.76 | L61: =((L60*Summary!$C$51*L59)/100000)*Summary!$C$50 -> 7751.7 | M61: =((M60*Summary!$C$51*M59)/100000)*Summary!$C$50 -> 7751.7 | N61: =((N60*Summary!$C$51*N59)/100000)*Summary!$C$50 -> 7751.7
B63: Income from existing product | C63: Rs. in Lakh | E63: 124 | F63: 124 | G63: 124 | H63: 124 | I63: 124 | J63: 124 | K63: 124 | L63: 124 | M63: 124 | N63: 124
B68: Cost of Manufacturing Assumptions (Please Add Rows if required)
B70: Assumptions | C70: Values
B71: Daily Raw Material consumption-For Manufacturing Sector Daily Services procurement -For Service Sector (In units) | C71: 1000
B72: Cost Price per Unit
B73: Increament % of Cost price
B74: Power Consumpotion
B75: Labour Charges
B76: Other Utility
B83: Particulars | C83: FY | D83: At Full Capacity | E83: =Summary!E58 -> Year 1 | F83: =Summary!F58 -> Year 2 | G83: =Summary!G58 -> Year 3 | H83: =Summary!H58 -> Year 4 | I83: =Summary!I58 -> Year 5 | J83: =Summary!J58 -> Year 6 | K83: =Summary!K58 -> Year 7 | L83: =Summary!L58 -> Year 8 | M83: =Summary!M58 -> Year 9 | N83: =Summary!N58 -> Year 10
B84: Capacity Utilization | C84: % | D84: =D59 -> 1 | E84: =Summary!E59 -> 0.25 | F84: =Summary!F59 -> 0.45 | G84: =Summary!G59 -> 0.5 | H84: =Summary!H59 -> 0.55 | I84: =Summary!I59 -> 0.6 | J84: =Summary!J59 -> 0.65 | K84: =Summary!K59 -> 0.7 | L84: =Summary!L59 -> 0.75 | M84: =Summary!M59 -> 0.75 | N84: =Summary!N59 -> 0.75
B85: Cost Price per Unit | C85: Rs. Per Unit | D85: 3430 | E85: 3430 | F85: 3460 | G85: 3460 | H85: 3490 | I85: 3490 | J85: 3520 | K85: 3520 | L85: 3550 | M85: 3550 | N85: 3550
B86: Cost of Production of New product | C86: Rs. in Lakh | D86: =((Summary!$C$71*D85*D84)/100000)*Summary!$C$50 -> 9055.2 | E86: =((Summary!$C$71*E85*E84)/100000)*Summary!$C$50 -> 2263.8 | F86: =((Summary!$C$71*F85*F84)/100000)*Summary!$C$50 -> 4110.48 | G86: =((Summary!$C$71*G85*G84)/100000)*Summary!$C$50 -> 4567.2 | H86: =((Summary!$C$71*H85*H84)/100000)*Summary!$C$50 -> 5067.48 | I86: =((Summary!$C$71*I85*I84)/100000)*Summary!$C$50 -> 5528.16 | J86: =((Summary!$C$71*J85*J84)/100000)*Summary!$C$50 -> 6040.32 | K86: =((Summary!$C$71*K85*K84)/100000)*Summary!$C$50 -> 6504.96 | L86: =((Summary!$C$71*L85*L84)/100000)*Summary!$C$50 -> 7029 | M86: =((Summary!$C$71*M85*M84)/100000)*Summary!$C$50 -> 7029 | N86: =((Summary!$C$71*N85*N84)/100000)*Summary!$C$50 -> 7029
B88: Cost of Production of existing product | E88: 50 | F88: 50 | G88: 50 | H88: 50 | I88: 50 | J88: 50 | K88: 50 | L88: 50 | M88: 50 | N88: 50
B92: Selling, Gen & Admin Expenses (Please Add Rows if required)
E93: =E83 -> Year 1 | F93: =F83 -> Year 2 | G93: Year 3 | H93: Year 4 | I93: Year 5 | J93: Year 6 | K93: Year 7 | L93: Year 8 | M93: Year 9 | N93: Year 10
B94: Selling, Gen & Admin Expenses | E94: 70 | F94: 70 | G94: 70 | H94: 70 | I94: 70 | J94: 70 | K94: 70 | L94: 70 | M94: 70 | N94: 70
B100: Other finance cost (Please Add Rows if required)
E101: =E93 -> Year 1 | F101: =F93 -> Year 2 | G101: Year 3 | H101: Year 4 | I101: Year 5 | J101: Year 6 | K101: Year 7 | L101: Year 8 | M101: Year 9 | N101: Year 10
B102: Other finance cost | E102: 0 | F102: 0 | G102: 0 | H102: 0 | I102: 0 | J102: 0 | K102: 0 | L102: 0 | M102: 0 | N102: 0
B107: DEPRECIATION SCHEDULE (Please Add Rows if required)
B108: Particulars | E108: =E101 -> Year 1 | F108: =F101 -> Year 2 | G108: Year 3 | H108: Year 4 | I108: Year 5 | J108: Year 6 | K108: Year 7 | L108: Year 8 | M108: Year 9 | N108: Year 10
B109: Building
B110: Plant and Machinery
B111: Other Fixed Assets
B118: Working Capital Assumptions (Please Add Rows if required)
E119: =E108 -> Year 1 | F119: =F108 -> Year 2 | G119: Year 3 | H119: Year 4 | I119: Year 5 | J119: Year 6 | K119: Year 7 | L119: Year 8 | M119: Year 9 | N119: Year 10
B120: Expenses payable as % of RM | E120: 0.03 | F120: 0.03 | G120: 0.03 | H120: 0.03 | I120: 0.03 | J120: 0.03 | K120: 0.03 | L120: 0.03 | M120: 0.03 | N120: 0.03
B121: Advance from Customers as % of RM | E121: 0.05 | F121: 0.05 | G121: 0.05 | H121: 0.05 | I121: 0.05 | J121: 0.05 | K121: 0.05 | L121: 0.05 | M121: 0.05 | N121: 0.05
B122: Other Liabilities as % age of sales | E122: 0.05 | F122: 0.05 | G122: 0.05 | H122: 0.05 | I122: 0.05 | J122: 0.05 | K122: 0.05 | L122: 0.05 | M122: 0.05 | N122: 0.05
B123: Provisions as % of sales | E123: 0.01 | F123: 0.01 | G123: 0.01 | H123: 0.01 | I123: 0.01 | J123: 0.01 | K123: 0.01 | L123: 0.01 | M123: 0.01 | N123: 0.01
B124: Working Capital
B125: Current Assets
B126: Inventories
B127: Sundry Debtors
B128: Loans & Advances
B129: Current Liabilities
B130: Sundry Creditors
B131: Expenses payable
B132: Advance from Customers
B133: Other Liabilities
B134: Provisions
B135: Total Working capital required

Sheet Projections
B1: PROFIT & LOSS | P1: PROFIT & LOSS | AD1: PROFIT & LOSS | AR1: PROFIT & LOSS | BF1: PROFIT & LOSS
B2: Amount in Rs. Lakhs | P2: Amount in Rs. Lakhs | AD2: Amount in Rs. Lakhs | AR2: Amount in Rs. Lakhs | BF2: Amount in Rs. Lakhs
B3: Particulars | D3: Year 0 | E3: =Summary!E58 -> Year 1 | F3: =Summary!F58 -> Year 2 | G3: =Summary!G58 -> Year 3 | H3: =Summary!H58 -> Year 4 | I3: =Summary!I58 -> Year 5 | J3: =Summary!J58 -> Year 6 | K3: =Summary!K58 -> Year 7 | L3: =Summary!L58 -> Year 8 | M3: =Summary!M58 -> Year 9 | N3: =Summary!N58 -> Year 10 | P3: Particulars | R3: Year 0 | S3: =E3 -> Year 1 | T3: =F3 -> Year 2 | U3: Year 3 | V3: Year 4 | W3: Year 5 | X3: Year 6 | Y3: Year 7 | Z3: Year 8 | AA3: Year 9 | AB3: Year 10 | AD3: Particulars | AF3: Year 0 | AG3: =S3 -> Year 1 | AH3: =T3 -> Year 2 | AI3: =U3 -> Year 3 | AJ3: =V3 -> Year 4 | AK3: =W3 -> Year 5 | AL3: =X3 -> Year 6 | AM3: =Y3 -> Year 7 | AN3: =Z3 -> Year 8 | AO3: =AA3 -> Year 9 | AP3: =AB3 -> Year 10 | AR3: Particulars | AT3: Year 0 | AU3: =AG3 -> Year 1 | AV3: =AH3 -> Year 2 | AW3: =AI3 -> Year 3 | AX3: =AJ3 -> Year 4 | AY3: =AK3 -> Year 5 | AZ3: =AL3 -> Year 6 | BA3: =AM3 -> Year 7 | BB3: =AN3 -> Year 8 | BC3: =AO3 -> Year 9 | BD3: =AP3 -> Year 10 | BF3: Particulars | BH3: Year 0 | BI3: =AU3 -> Year 1 | BJ3: =AV3 -> Year 2 | BK3: =AW3 -> Year 3 | BL3: =AX3 -> Year 4 | BM3: =AY3 -> Year 5 | BN3: =AZ3 -> Year 6 | BO3: =BA3 -> Year 7 | BP3: =BB3 -> Year 8 | BQ3: =BC3 -> Year 9 | BR3: =BD3 -> Year 10
B4: Revenue from new product | E4: =Summary!E61 -> 2465.1 | F4: =Summary!F61 -> 4490.64 | G4: =Summary!G61 -> 4989.6 | H4: =Summary!H61 -> 5553.9 | I4: =Summary!I61 -> 6058.8 | J4: =Summary!J61 -> 6640.92 | K4: =Summary!K61 -> 7151.76 | L4: =Summary!L61 -> 7751.7 | M4: =Summary!M61 -> 7751.7 | N4: =Summary!N61 -> 7751.7 | P4: Revenue from new product | S4: =E4 -> 2465.1 | T4: 4490.64 | U4: 4989.6 | V4: 5553.9 | W4: 6058.8 | X4: 6640.92 | Y4: 7151.76 | Z4: 7751.7 | AA4: 7751.7 | AB4: 7751.7 | AD4: Revenue from new product | AG4: =S4 -> 2465.1 | AH4: 4490.64 | AI4: 4989.6 | AJ4: 5553.9 | AK4: 6058.8 | AL4: 6640.92 | AM4: 7151.76 | AN4: 7751.7 | AO4: 7751.7 | AP4: 7751.7 | AR4: Revenue from new product | AU4: =AG4 -> 2465.1 | AV4: 4490.64 | AW4: 4989.6 | AX4: 5553.9 | AY4: 6058.8 | AZ4: 6640.92 | BA4: 7151.76 | BB4: 7751.7 | BC4: 7751.7 | BD4: 7751.7 | BF4: Revenue from new product | BI4: =AU4 -> 2465.1 | BJ4: 4490.64 | BK4: 4989.6 | BL4: 5553.9 | BM4: 6058.8 | BN4: 6640.92 | BO4: 7151.76 | BP4: 7751.7 | BQ4: 7751.7 | BR4: 7751.7
B5: Revenue from existing product | E5: =Summary!E63 -> 124 | F5: =Summary!F63 -> 124 | G5: =Summary!G63 -> 124 | H5: =Summary!H63 -> 124 | I5: =Summary!I63 -> 124 | J5: =Summary!J63 -> 124 | K5: =Summary!K63 -> 124 | L5: =Summary!L63 -> 124 | M5: =Summary!M63 -> 124 | N5: =Summary!N63 -> 124 | P5: Revenue from existing product | S5: =E5 -> 124 | T5: 124 | U5: 124 | V5: 124 | W5: 124 | X5: 124 | Y5: 124 | Z5: 124 | AA5: 124 | AB5: 124 | AD5: Revenue from existing product | AG5: =S5 -> 124 | AH5: 124 | AI5: 124 | AJ5: 124 | AK5: 124 | AL5: 124 | AM5: 124 | AN5: 124 | AO5: 124 | AP5: 124 | AR5: Revenue from existing product | AU5: =AG5 -> 124 | AV5: 124 | AW5: 124 | AX5: 124 | AY5: 124 | AZ5: 124 | BA5: 124 | BB5: 124 | BC5: 124 | BD5: 124 | BF5: Revenue from existing product | BI5: =AU5 -> 124 | BJ5: 124 | BK5: 124 | BL5: 124 | BM5: 124 | BN5: 124 | BO5: 124 | BP5: 124 | BQ5: 124 | BR5: 124
B6: Total Revenue | E6: =+E4+E5 -> 2589.1 | F6: 4614.64 | G6: 5113.6 | H6: 5677.9 | I6: 6182.8 | J6: 6764.92 | K6: 7275.76 | L6: 7875.7 | M6: 7875.7 | N6: 7875.7 | P6: Total Revenue | S6: =(+S4+S5)*1.05 -> 2718.555 | T6: =(+T4+T5)*1.05 -> 4845.372 | U6: 5369.28 | V6: 5961.795 | W6: 6491.94 | X6: 7103.166 | Y6: 7639.548 | Z6: 8269.485 | AA6: 8269.485 | AB6: 8269.485 | AD6: Total Revenue | AG6: =(+AG4+AG5)*0.95 -> 2459.645 | AH6: =(+AH4+AH5)*0.95 -> 4383.908 | AI6: 4857.92 | AJ6: 5394.005 | AK6: 5873.66 | AL6: 6426.674 | AM6: 6911.972 | AN6: 7481.915 | AO6: 7481.915 | AP6: 7481.915 | AR6: Total Revenue | AU6: =(+AU4+AU5) -> 2589.1 | AV6: =(+AV4+AV5) -> 4614.64 | AW6: 5113.6 | AX6: 5677.9 | AY6: 6182.8 | AZ6: 6764.92 | BA6: 7275.76 | BB6: 7875.7 | BC6: 7875.7 | BD6: 7875.7 | BF6: Total Revenue | BI6: =(+BI4+BI5) -> 2589.1 | BJ6: =(+BJ4+BJ5) -> 4614.64 | BK6: 5113.6 | BL6: 5677.9 | BM6: 6182.8 | BN6: 6764.92 | BO6: 7275.76 | BP6: 7875.7 | BQ6: 7875.7 | BR6: 7875.7
B7: Cost of Production of new product | E7: =Summary!E86 -> 2263.8 | F7: =Summary!F86 -> 4110.48 | G7: =Summary!G86 -> 4567.2 | H7: =Summary!H86 -> 5067.48 | I7: =Summary!I86 -> 5528.16 | J7: =Summary!J86 -> 6040.32 | K7: =Summary!K86 -> 6504.96 | L7: =Summary!L86 -> 7029 | M7: =Summary!M86 -> 7029 | N7: =Summary!N86 -> 7029 | P7: Cost of Production of new product | S7: =E7 -> 2263.8 | T7: 4110.48 | U7: 4567.2 | V7: 5067.48 | W7: 5528.16 | X7: 6040.32 | Y7: 6504.96 | Z7: 7029 | AA7: 7029 | AB7: 7029 | AD7: Cost of Production of new product | AG7: =S7 -> 2263.8 | AH7: 4110.48 | AI7: 4567.2 | AJ7: 5067.48 | AK7: 5528.16 | AL7: 6040.32 | AM7: 6504.96 | AN7: 7029 | AO7: 7029 | AP7: 7029 | AR7: Cost of Production of new product | AU7: =AG7 -> 2263.8 | AV7: 4110.48 | AW7: 4567.2 | AX7: 5067.48 | AY7: 5528.16 | AZ7: 6040.32 | BA7: 6504.96 | BB7: 7029 | BC7: 7029 | BD7: 7029 | BF7: Cost of Production of new product | BI7: =AU7 -> 2263.8 | BJ7: 4110.48 | BK7: 4567.2 | BL7: 5067.48 | BM7: 5528.16 | BN7: 6040.32 | BO7: 6504.96 | BP7: 7029 | BQ7: 7029 | BR7: 7029
B8: Cost of Production of existing product | E8: =Summary!E88 -> 50 | F8: =Summary!F88 -> 50 | G8: =Summary!G88 -> 50 | H8: =Summary!H88 -> 50 | I8: =Summary!I88 -> 50 | J8: =Summary!J88 -> 50 | K8: =Summary!K88 -> 50 | L8: =Summary!L88 -> 50 | M8: =Summary!M88 -> 50 | N8: =Summary!N88 -> 50 | P8: Cost of Production of existing product | S8: =E8 -> 50 | T8: 50 | U8: 50 | V8: 50 | W8: 50 | X8: 50 | Y8: 50 | Z8: 50 | AA8: 50 | AB8: 50 | AD8: Cost of Production of existing product | AG8: =S8 -> 50 | AH8: 50 | AI8: 50 | AJ8: 50 | AK8: 50 | AL8: 50 | AM8: 50 | AN8: 50 | AO8: 50 | AP8: 50 | AR8: Cost of Production of existing product | AU8: =AG8 -> 50 | AV8: 50 | AW8: 50 | AX8: 50 | AY8: 50 | AZ8: 50 | BA8: 50 | BB8: 50 | BC8: 50 | BD8: 50 | BF8: Cost of Production of existing product | BI8: =AU8 -> 50 | BJ8: 50 | BK8: 50 | BL8: 50 | BM8: 50 | BN8: 50 | BO8: 50 | BP8: 50 | BQ8: 50 | BR8: 50
B9: Total cost of production | E9: =+E7+E8 -> 2313.8 | F9: 4160.48 | G9: 4617.2 | H9: 5117.48 | I9: 5578.16 | J9: 6090.32 | K9: 6554.96 | L9: 7079 | M9: 7079 | N9: 7079 | P9: Total cost of production | S9: =+S7+S8 -> 2313.8 | T9: =F9 -> 4160.48 | U9: 4617.2 | V9: 5117.48 | W9: 5578.16 | X9: 6090.32 | Y9: 6554.96 | Z9: 7079 | AA9: 7079 | AB9: 7079 | AD9: Total cost of production | AG9: =+AG7+AG8 -> 2313.8 | AH9: 4160.48 | AI9: 4617.2 | AJ9: 5117.48 | AK9: 5578.16 | AL9: 6090.32 | AM9: 6554.96 | AN9: 7079 | AO9: 7079 | AP9: 7079 | AR9: Total cost of production | AU9: =(+AU7+AU8)*0.95 -> 2198.11 | AV9: =(+AV7+AV8)*0.95 -> 3952.456 | AW9: 4386.34 | AX9: 4861.606 | AY9: 5299.252 | AZ9: 5785.804 | BA9: 6227.212 | BB9: 6725.05 | BC9: 6725.05 | BD9: 6725.05 | BF9: Total cost of production | BI9: =(+BI7+BI8)*1.05 -> 2429.49 | BJ9: =(+BJ7+BJ8)*1.05 -> 4368.504 | BK9: 4848.06 | BL9: 5373.354 | BM9: 5857.068 | BN9: 6394.836 | BO9: 6882.708 | BP9: 7432.95 | BQ9: 7432.95 | BR9: 7432.95
B10: Selling, Gen & Admin Expenses | E10: =Summary!E94 -> 70 | F10: =Summary!F94 -> 70 | G10: =Summary!G94 -> 70 | H10: =Summary!H94 -> 70 | I10: =Summary!I94 -> 70 | J10: =Summary!J94 -> 70 | K10: =Summary!K94 -> 70 | L10: =Summary!L94 -> 70 | M10: =Summary!M94 -> 70 | N10: =Summary!N94 -> 70 | P10: Selling, Gen & Admin Expenses | S10: =E10 -> 70 | T10: 70 | U10: 70 | V10: 70 | W10: 70 | X10: 70 | Y10: 70 | Z10: 70 | AA10: 70 | AB10: 70 | AD10: Selling, Gen & Admin Expenses | AG10: =S10 -> 70 | AH10: 70 | AI10: 70 | AJ10: 70 | AK10: 70 | AL10: 70 | AM10: 70 | AN10: 70 | AO10: 70 | AP10: 70 | AR10: Selling, Gen & Admin Expenses | AU10: =AG10 -> 70 | AV10: 70 | AW10: 70 | AX10: 70 | AY10: 70 | AZ10: 70 | BA10: 70 | BB10: 70 | BC10: 70 | BD10: 70 | BF10: Selling, Gen & Admin Expenses | BI10: =AU10 -> 70 | BJ10: 70 | BK10: 70 | BL10: 70 | BM10: 70 | BN10: 70 | BO10: 70 | BP10: 70 | BQ10: 70 | BR10: 70
B11: Depreciation | E11: =(D40-E40) -> 60 | F11: 51 | G11: 43.35 | H11: 36.8475 | I11: 31.320375 | J11: 26.62231875 | K11: 22.62897094 | L11: 19.2346253 | M11: 16.3494315 | N11: 13.89701678 | P11: Depreciation | S11: =(R40-S40) -> 60 | T11: =(S40-T40) -> 51 | U11: =(T40-U40) -> 43.35 | V11: =(U40-V40) -> 36.8475 | W11: =(V40-W40) -> 31.320375 | X11: =(W40-X40) -> 26.62231875 | Y11: =(X40-Y40) -> 22.62897094 | Z11: =(Y40-Z40) -> 19.2346253 | AA11: =(Z40-AA40) -> 16.3494315 | AB11: =(AA40-AB40) -> 13.89701678 | AD11: Depreciation | AG11: =(AF40-AG40) -> 60 | AH11: =(AG40-AH40) -> 51 | AI11: =(AH40-AI40) -> 43.35 | AJ11: =(AI40-AJ40) -> 36.8475 | AK11: =(AJ40-AK40) -> 31.320375 | AL11: =(AK40-AL40) -> 26.62231875 | AM11: =(AL40-AM40) -> 22.62897094 | AN11: =(AM40-AN40) -> 19.2346253 | AO11: =(AN40-AO40) -> 16.3494315 | AP11: =(AO40-AP40) -> 13.89701678 | AR11: Depreciation | AU11: =(AT40-AU40) -> 60 | AV11: =(AU40-AV40) -> 51 | AW11: =(AV40-AW40) -> 43.35 | AX11: =(AW40-AX40) -> 36.8475 | AY11: =(AX40-AY40) -> 31.320375 | AZ11: =(AY40-AZ40) -> 26.62231875 | BA11: =(AZ40-BA40) -> 22.62897094 | BB11: =(BA40-BB40) -> 19.2346253 | BC11: =(BB40-BC40) -> 16.3494315 | BD11: =(BC40-BD40) -> 13.89701678 | BF11: Depreciation | BI11: =(BH40-BI40) -> 60 | BJ11: =(BI40-BJ40) -> 51 | BK11: =(BJ40-BK40) -> 43.35 | BL11: =(BK40-BL40) -> 36.8475 | BM11: =(BL40-BM40) -> 31.320375 | BN11: =(BM40-BN40) -> 26.62231875 | BO11: =(BN40-BO40) -> 22.62897094 | BP11: =(BO40-BP40) -> 19.2346253 | BQ11: =(BP40-BQ40) -> 16.3494315 | BR11: =(BQ40-BR40) -> 13.89701678
B12: VCF-SC Coupon | E12: =Interest!E51/100000 -> 13.46 | F12: =Interest!F51/100000 -> 13.46 | G12: =Interest!G51/100000 -> 13.46 | H12: =Interest!H51/100000 -> 12.73892857 | I12: =Interest!I51/100000 -> 10.81607143 | J12: =Interest!J51/100000 -> 8.893214286 | K12: =Interest!K51/100000 -> 6.970357143 | L12: =Interest!L51/100000 -> 5.0475 | M12: =Interest!M51/100000 -> 3.124642857 | N12: =Interest!N51/100000 -> 1.201785714 | P12: VCF-SC Coupon | S12: =Interest!E51/100000 -> 13.46 | T12: =Interest!F51/100000 -> 13.46 | U12: =Interest!G51/100000 -> 13.46 | V12: =Interest!H51/100000 -> 12.73892857 | W12: =Interest!I51/100000 -> 10.81607143 | X12: =Interest!J51/100000 -> 8.893214286 | Y12: =Interest!K51/100000 -> 6.970357143 | Z12: =Interest!L51/100000 -> 5.0475 | AA12: =Interest!M51/100000 -> 3.124642857 | AB12: =Interest!N51/100000 -> 1.201785714 | AD12: VCF-SC Coupon | AG12: =Interest!E51/100000 -> 13.46 | AH12: =Interest!F51/100000 -> 13.46 | AI12: =Interest!G51/100000 -> 13.46 | AJ12: =Interest!H51/100000 -> 12.73892857 | AK12: =Interest!I51/100000 -> 10.81607143 | AL12: =Interest!J51/100000 -> 8.893214286 | AM12: =Interest!K51/100000 -> 6.970357143 | AN12: =Interest!L51/100000 -> 5.0475 | AO12: =Interest!M51/100000 -> 3.124642857 | AP12: =Interest!N51/100000 -> 1.201785714 | AR12: VCF-SC Coupon | AU12: =Interest!E51/100000 -> 13.46 | AV12: =Interest!F51/100000 -> 13.46 | AW12: =Interest!G51/100000 -> 13.46 | AX12: =Interest!H51/100000 -> 12.73892857 | AY12: =Interest!I51/100000 -> 10.81607143 | AZ12: =Interest!J51/100000 -> 8.893214286 | BA12: =Interest!K51/100000 -> 6.970357143 | BB12: =Interest!L51/100000 -> 5.0475 | BC12: =Interest!M51/100000 -> 3.124642857 | BD12: =Interest!N51/100000 -> 1.201785714 | BF12: VCF-SC Coupon | BI12: =Interest!E51/100000 -> 13.46 | BJ12: =Interest!F51/100000 -> 13.46 | BK12: =Interest!G51/100000 -> 13.46 | BL12: =Interest!H51/100000 -> 12.73892857 | BM12: =Interest!I51/100000 -> 10.81607143 | BN12: =Interest!J51/100000 -> 8.893214286 | BO12: =Interest!K51/100000 -> 6.970357143 | BP12: =Interest!L51/100000 -> 5.0475 | BQ12: =Interest!M51/100000 -> 3.124642857 | BR12: =Interest!N51/100000 -> 1.201785714
B13: Other finance cost | E13: =Summary!E102 -> 0 | F13: =Summary!F102 -> 0 | G13: =Summary!G102 -> 0 | H13: =Summary!H102 -> 0 | I13: =Summary!I102 -> 0 | J13: =Summary!J102 -> 0 | K13: =Summary!K102 -> 0 | L13: =Summary!L102 -> 0 | M13: =Summary!M102 -> 0 | N13: =Summary!N102 -> 0 | P13: Other finance cost | S13: =E13 -> 0 | T13: 0 | U13: 0 | V13: 0 | W13: 0 | X13: 0 | Y13: 0 | Z13: 0 | AA13: 0 | AB13: 0 | AD13: Other finance cost | AG13: =S13 -> 0 | AH13: =T13 -> 0 | AI13: =U13 -> 0 | AJ13: =V13 -> 0 | AK13: =W13 -> 0 | AL13: =X13 -> 0 | AM13: =Y13 -> 0 | AN13: =Z13 -> 0 | AO13: =AA13 -> 0 | AP13: =AB13 -> 0 | AR13: Other finance cost | AU13: =AG13 -> 0 | AV13: =AH13 -> 0 | AW13: =AI13 -> 0 | AX13: =AJ13 -> 0 | AY13: =AK13 -> 0 | AZ13: =AL13 -> 0 | BA13: =AM13 -> 0 | BB13: =AN13 -> 0 | BC13: =AO13 -> 0 | BD13: =AP13 -> 0 | BF13: Other finance cost | BI13: =AU13 -> 0 | BJ13: =AV13 -> 0 | BK13: =AW13 -> 0 | BL13: =AX13 -> 0 | BM13: =AY13 -> 0 | BN13: =AZ13 -> 0 | BO13: =BA13 -> 0 | BP13: =BB13 -> 0 | BQ13: =BC13 -> 0 | BR13: =BD13 -> 0
B14: Pre-Operative Expenditure( as mentioned in Project Cost Screen) | D14: =Summary!C29 -> 50 | E14: =$D$14/5 -> 10 | F14: =$D$14/5 -> 10 | G14: =$D$14/5 -> 10 | H14: =$D$14/5 -> 10 | I14: =$D$14/5 -> 10 | P14: Pre-Operative Expenditure( as mentioned in Project Cost Screen) | R14: =Summary!C29 -> 50 | S14: =$D$14/5 -> 10 | T14: =$D$14/5 -> 10 | U14: =$D$14/5 -> 10 | V14: =$D$14/5 -> 10 | W14: =$D$14/5 -> 10 | AD14: Pre-Operative Expenditure( as mentioned in Project Cost Screen) | AF14: =Summary!C29 -> 50 | AG14: =$D$14/5 -> 10 | AH14: =$D$14/5 -> 10 | AI14: =$D$14/5 -> 10 | AJ14: =$D$14/5 -> 10 | AK14: =$D$14/5 -> 10 | AR14: Pre-Operative Expenditure( as mentioned in Project Cost Screen) | AT14: =Summary!C29 -> 50 | AU14: =$D$14/5 -> 10 | AV14: =$D$14/5 -> 10 | AW14: =$D$14/5 -> 10 | AX14: =$D$14/5 -> 10 | AY14: =$D$14/5 -> 10 | BF14: Pre-Operative Expenditure( as mentioned in Project Cost Screen) | BH14: =Summary!C29 -> 50 | BI14: =$D$14/5 -> 10 | BJ14: =$D$14/5 -> 10 | BK14: =$D$14/5 -> 10 | BL14: =$D$14/5 -> 10 | BM14: =$D$14/5 -> 10
B15: PBT | E15: =E6-E9-E10-E11-E12-E13-E14 -> 121.84 | F15: 309.7 | G15: 359.59 | H15: 430.8335714 | I15: 482.5035536 | J15: 569.084467 | K15: 621.2006719 | L15: 702.4178747 | M15: 707.2259256 | N15: 711.6011975 | P15: PBT | S15: =S6-S9-S10-S11-S12-S13-S14 -> 251.295 | T15: =T6-T9-T10-T11-T12-T13-T14 -> 540.432 | U15: 615.27 | V15: 714.7285714 | W15: 791.6435536 | X15: 907.330467 | Y15: 984.9886719 | Z15: 1096.202875 | AA15: 1101.010926 | AB15: 1105.386198 | AD15: PBT | AG15: =AG6-AG9-AG10-AG11-AG12-AG13-AG14 -> -7.615 | AH15: =AH6-AH9-AH10-AH11-AH12-AH13-AH14 -> 78.968 | AI15: 103.91 | AJ15: 146.9385714 | AK15: 173.3635536 | AL15: 230.838467 | AM15: 257.4126719 | AN15: 308.6328747 | AO15: 313.4409256 | AP15: 317.8161975 | AR15: PBT | AU15: =AU6-AU9-AU10-AU11-AU12-AU13-AU14 -> 237.53 | AV15: =AV6-AV9-AV10-AV11-AV12-AV13-AV14 -> 517.724 | AW15: 590.45 | AX15: 686.7075714 | AY15: 761.4115536 | AZ15: 873.600467 | BA15: 948.9486719 | BB15: 1056.367875 | BC15: 1061.175926 | BD15: 1065.551198 | BF15: PBT | BI15: =BI6-BI9-BI10-BI11-BI12-BI13-BI14 -> 6.15 | BJ15: =BJ6-BJ9-BJ10-BJ11-BJ12-BJ13-BJ14 -> 101.676 | BK15: 128.73 | BL15: 174.9595714 | BM15: 203.5955536 | BN15: 264.568467 | BO15: 293.4526719 | BP15: 348.4678747 | BQ15: 353.2759256 | BR15: 357.6511975
B16: Tax | E16: =E15*33.33% -> 40.609272 | F16: 103.22301 | G16: 119.851347 | H16: 143.5968294 | I16: 160.8184344 | J16: 189.6758528 | K16: 207.046184 | L16: 234.1158776 | M16: 235.718401 | N16: 237.1766791 | P16: Tax | S16: =S15*33.33% -> 83.7566235 | T16: 180.1259856 | U16: 205.069491 | V16: 238.2190329 | W16: 263.8547964 | X16: 302.4132446 | Y16: 328.2967244 | Z16: 365.3644181 | AA16: 366.9669415 | AB16: 368.4252196 | AD16: Tax | AG16: =AG15*33.33% -> -2.5380795 | AH16: 26.3200344 | AI16: 34.633203 | AJ16: 48.97462586 | AK16: 57.78207241 | AL16: 76.93846104 | AM16: 85.79564355 | AN16: 102.8673371 | AO16: 104.4698605 | AP16: 105.9281386 | AR16: Tax | AU16: =AU15*33.33% -> 79.168749 | AV16: 172.5574092 | AW16: 196.796985 | AX16: 228.8796336 | AY16: 253.7784708 | AZ16: 291.1710356 | BA16: 316.2845924 | BB16: 352.0874126 | BC16: 353.689936 | BD16: 355.1482141 | BF16: Tax | BI16: =BI15*33.33% -> 2.049795 | BJ16: 33.8886108 | BK16: 42.905709 | BL16: 58.31402516 | BM16: 67.85839801 | BN16: 88.18067004 | BO16: 97.80777555 | BP16: 116.1443426 | BQ16: 117.746866 | BR16: 119.2051441
B17: Net Profit | E17: =E15-E16 -> 81.230728 | F17: 206.47699 | G17: 239.738653 | H17: 287.2367421 | I17: 321.6851192 | J17: 379.4086141 | K17: 414.154488 | L17: 468.3019971 | M17: 471.5075246 | N17: 474.4245184 | P17: Net Profit | S17: =S15-S16 -> 167.5383765 | T17: 360.3060144 | U17: 410.200509 | V17: 476.5095386 | W17: 527.7887572 | X17: 604.9172223 | Y17: 656.6919476 | Z17: 730.8384566 | AA17: 734.0439841 | AB17: 736.9609779 | AD17: Net Profit | AG17: =AG15-AG16 -> -5.0769205 | AH17: 52.6479656 | AI17: 69.276797 | AJ17: 97.96394557 | AK17: 115.5814812 | AL17: 153.9000059 | AM17: 171.6170284 | AN17: 205.7655376 | AO17: 208.9710651 | AP17: 211.8880589 | AR17: Net Profit | AU17: =AU15-AU16 -> 158.361251 | AV17: 345.1665908 | AW17: 393.653015 | AX17: 457.8279379 | AY17: 507.6330828 | AZ17: 582.4294313 | BA17: 632.6640796 | BB17: 704.2804621 | BC17: 707.4859896 | BD17: 710.4029834 | BF17: Net Profit | BI17: =BI15-BI16 -> 4.100205 | BJ17: 67.7873892 | BK17: 85.824291 | BL17: 116.6455463 | BM17: 135.7371556 | BN17: 176.3877969 | BO17: 195.6448964 | BP17: 232.3235321 | BQ17: 235.5290596 | BR17: 238.4460534
B18: Net Profit Margin (%) | E18: =(E17/E6)*100 -> 3.137411765 | F18: 4.474389985 | G18: 4.688255886 | H18: 5.058855247 | I18: 5.202903525 | J18: 5.608471558 | K18: 5.692250541 | L18: 5.946163478 | M18: 5.986864972 | N18: 6.023902871 | P18: Net Profit Margin (%) | S18: =(S17/S6)*100 -> 6.162773109 | T18: =(T17/T6)*100 -> 7.4360857 | U18: 7.639767511 | V18: 7.992719283 | W18: 8.129908119 | X18: 8.516163389 | Y18: 8.595952896 | Z18: 8.837774741 | AA18: 8.876538069 | AB18: 8.911812258 | AD18: Net Profit Margin (%) | AG18: =(AG17/AG6)*100 -> -0.2064086687 | AH18: =(AH17/AH6)*100 -> 1.200936826 | AI18: 1.426058828 | AJ18: 1.816163418 | AK18: 1.967793185 | AL18: 2.394706903 | AM18: 2.482895306 | AN18: 2.750172082 | AO18: 2.79301576 | AP18: 2.832003022 | AR18: Net Profit Margin (%) | AU18: =(AU17/AU6)*100 -> 6.116459426 | AV18: =(AV17/AV6)*100 -> 7.479816211 | AW18: 7.698158147 | AX18: 8.06333218 | AY18: 8.210407627 | AZ18: 8.609553865 | BA18: 8.695505068 | BB18: 8.942449078 | BC18: 8.983150572 | BD18: 9.020188471 | BF18: Net Profit Margin (%) | BI18: =(BI17/BI6)*100 -> 0.1583641034 | BJ18: =(BJ17/BJ6)*100 -> 1.468963759 | BK18: 1.678353626 | BL18: 2.054378314 | BM18: 2.195399424 | BN18: 2.607389251 | BO18: 2.688996014 | BP18: 2.949877878 | BQ18: 2.990579372 | BR18: 3.027617271
B20: BALANCE SHEET | P20: BALANCE SHEET | AD20: BALANCE SHEET | AR20: BALANCE SHEET | BF20: BALANCE SHEET
B21: Amount in Rs. Lakhs | P21: Amount in Rs. Lakhs | AD21: Amount in Rs. Lakhs | AR21: Amount in Rs. Lakhs | BF21: Amount in Rs. Lakhs
B22: Particulars | D22: Year 0 | E22: =E3 -> Year 1 | F22: Year 2 | G22: Year 3 | H22: Year 4 | I22: Year 5 | J22: Year 6 | K22: Year 7 | L22: Year 8 | M22: Year 9 | N22: Year 10 | P22: Particulars | R22: Year 0 | S22: =S3 -> Year 1 | T22: Year 2 | U22: Year 3 | V22: Year 4 | W22: Year 5 | X22: Year 6 | Y22: Year 7 | Z22: Year 8 | AA22: Year 9 | AB22: Year 10 | AD22: Particulars | AF22: Year 0 | AG22: =AG3 -> Year 1 | AH22: Year 2 | AI22: Year 3 | AJ22: Year 4 | AK22: Year 5 | AL22: Year 6 | AM22: Year 7 | AN22: Year 8 | AO22: Year 9 | AP22: Year 10 | AR22: Particulars | AT22: Year 0 | AU22: =AU3 -> Year 1 | AV22: Year 2 | AW22: Year 3 | AX22: Year 4 | AY22: Year 5 | AZ22: Year 6 | BA22: Year 7 | BB22: Year 8 | BC22: Year 9 | BD22: Year 10 | BF22: Particulars | BH22: Year 0 | BI22: =BI3 -> Year 1 | BJ22: Year 2 | BK22: Year 3 | BL22: Year 4 | BM22: Year 5 | BN22: Year 6 | BO22: Year 7 | BP22: Year 8 | BQ22: Year 9 | BR22: Year 10
B23: Liabilities | P23: Liabilities | AD23: Liabilities | AR23: Liabilities | BF23: Liabilities
B24: Share Capital at the beginning | D24: =Summary!C11 -> 1 | P24: Share Capital at the beginning | R24: =Summary!C11 -> 1 | AD24: Share Capital at the beginning | AF24: =Summary!C11 -> 1 | AR24: Share Capital at the beginning | AT24: =Summary!C11 -> 1 | BF24: Share Capital at the beginning | BH24: =Summary!C11 -> 1
B25: Promoter’s Contribution in Equity | D25: =Summary!C37 -> 112.5 | P25: Promoter’s Contribution in Equity | R25: =Summary!C37 -> 112.5 | AD25: Promoter’s Contribution in Equity | AF25: =Summary!C37 -> 112.5 | AR25: Promoter’s Contribution in Equity | AT25: =Summary!C37 -> 112.5 | BF25: Promoter’s Contribution in Equity | BH25: =Summary!C37 -> 112.5
B26: Venture Capital funds contribution in Equity | D26: =Summary!C38 -> 1 | P26: Venture Capital funds contribution in Equity | R26: =Summary!C38 -> 1 | AD26: Venture Capital funds contribution in Equity | AF26: =Summary!C38 -> 1 | AR26: Venture Capital funds contribution in Equity | AT26: =Summary!C38 -> 1 | BF26: Venture Capital funds contribution in Equity | BH26: =Summary!C38 -> 1
B27: Share Capital | D27: =D25+D26+D24 -> 114.5 | E27: =D27 -> 114.5 | F27: 114.5 | G27: 114.5 | H27: 114.5 | I27: 114.5 | J27: 114.5 | K27: 114.5 | L27: 114.5 | M27: 114.5 | N27: 114.5 | P27: Share Capital | R27: =R25+R26+R24 -> 114.5 | S27: =R27 -> 114.5 | T27: =S27 -> 114.5 | U27: =T27 -> 114.5 | V27: =U27 -> 114.5 | W27: =V27 -> 114.5 | X27: =W27 -> 114.5 | Y27: =X27 -> 114.5 | Z27: =Y27 -> 114.5 | AA27: =Z27 -> 114.5 | AB27: =AA27 -> 114.5 | AD27: Share Capital | AF27: =AF25+AF26+AF24 -> 114.5 | AG27: =AF27 -> 114.5 | AH27: =AG27 -> 114.5 | AI27: =AH27 -> 114.5 | AJ27: =AI27 -> 114.5 | AK27: =AJ27 -> 114.5 | AL27: =AK27 -> 114.5 | AM27: =AL27 -> 114.5 | AN27: =AM27 -> 114.5 | AO27: =AN27 -> 114.5 | AP27: =AO27 -> 114.5 | AR27: Share Capital | AT27: =AT25+AT26+AT24 -> 114.5 | AU27: =AT27 -> 114.5 | AV27: =AU27 -> 114.5 | AW27: =AV27 -> 114.5 | AX27: =AW27 -> 114.5 | AY27: =AX27 -> 114.5 | AZ27: =AY27 -> 114.5 | BA27: =AZ27 -> 114.5 | BB27: =BA27 -> 114.5 | BC27: =BB27 -> 114.5 | BD27: =BC27 -> 114.5 | BF27: Share Capital | BH27: =BH25+BH26+BH24 -> 114.5 | BI27: =BH27 -> 114.5 | BJ27: =BI27 -> 114.5 | BK27: =BJ27 -> 114.5 | BL27: =BK27 -> 114.5 | BM27: =BL27 -> 114.5 | BN27: =BM27 -> 114.5 | BO27: =BN27 -> 114.5 | BP27: =BO27 -> 114.5 | BQ27: =BP27 -> 114.5 | BR27: =BQ27 -> 114.5
B28: Reserves & Surplus | E28: =E17 -> 81.230728 | F28: =E28+F17 -> 287.707718 | G28: 527.446371 | H28: 814.6831131 | I28: 1136.368232 | J28: 1515.776846 | K28: 1929.931334 | L28: 2398.233331 | M28: 2869.740856 | N28: 3344.165374 | P28: Reserves & Surplus | S28: =S17 -> 167.5383765 | T28: =S28+T17 -> 527.8443909 | U28: =T28+U17 -> 938.0448999 | V28: =U28+V17 -> 1414.554438 | W28: =V28+W17 -> 1942.343196 | X28: =W28+X17 -> 2547.260418 | Y28: =X28+Y17 -> 3203.952366 | Z28: =Y28+Z17 -> 3934.790822 | AA28: =Z28+AA17 -> 4668.834806 | AB28: =AA28+AB17 -> 5405.795784 | AD28: Reserves & Surplus | AG28: =AG17 -> -5.0769205 | AH28: =AG28+AH17 -> 47.5710451 | AI28: =AH28+AI17 -> 116.8478421 | AJ28: =AI28+AJ17 -> 214.8117877 | AK28: =AJ28+AK17 -> 330.3932688 | AL28: =AK28+AL17 -> 484.2932748 | AM28: =AL28+AM17 -> 655.9103031 | AN28: =AM28+AN17 -> 861.6758407 | AO28: =AN28+AO17 -> 1070.646906 | AP28: =AO28+AP17 -> 1282.534965 | AR28: Reserves & Surplus | AU28: =AU17 -> 158.361251 | AV28: =AU28+AV17 -> 503.5278418 | AW28: =AV28+AW17 -> 897.1808568 | AX28: =AW28+AX17 -> 1355.008795 | AY28: =AX28+AY17 -> 1862.641877 | AZ28: =AY28+AZ17 -> 2445.071309 | BA28: =AZ28+BA17 -> 3077.735388 | BB28: =BA28+BB17 -> 3782.01585 | BC28: =BB28+BC17 -> 4489.50184 | BD28: =BC28+BD17 -> 5199.904823 | BF28: Reserves & Surplus | BI28: =BI17 -> 4.100205 | BJ28: =BI28+BJ17 -> 71.8875942 | BK28: =BJ28+BK17 -> 157.7118852 | BL28: =BK28+BL17 -> 274.3574315 | BM28: =BL28+BM17 -> 410.094587 | BN28: =BM28+BN17 -> 586.482384 | BO28: =BN28+BO17 -> 782.1272803 | BP28: =BO28+BP17 -> 1014.450812 | BQ28: =BP28+BQ17 -> 1249.979872 | BR28: =BQ28+BR17 -> 1488.425925
B29: Total Shareholder's Fund | E29: =+E27+E28 -> 195.730728 | F29: 402.207718 | G29: 641.946371 | H29: 929.1831131 | I29: 1250.868232 | J29: 1630.276846 | K29: 2044.431334 | L29: 2512.733331 | M29: 2984.240856 | N29: 3458.665374 | P29: Total Shareholder's Fund | S29: =+S27+S28 -> 282.0383765 | T29: 642.3443909 | U29: 1052.5449 | V29: 1529.054438 | W29: 2056.843196 | X29: 2661.760418 | Y29: 3318.452366 | Z29: 4049.290822 | AA29: 4783.334806 | AB29: 5520.295784 | AD29: Total Shareholder's Fund | AG29: =+AG27+AG28 -> 109.4230795 | AH29: 162.0710451 | AI29: 231.3478421 | AJ29: 329.3117877 | AK29: 444.8932688 | AL29: 598.7932748 | AM29: 770.4103031 | AN29: 976.1758407 | AO29: 1185.146906 | AP29: 1397.034965 | AR29: Total Shareholder's Fund | AU29: =+AU27+AU28 -> 272.861251 | AV29: 618.0278418 | AW29: 1011.680857 | AX29: 1469.508795 | AY29: 1977.141877 | AZ29: 2559.571309 | BA29: 3192.235388 | BB29: 3896.51585 | BC29: 4604.00184 | BD29: 5314.404823 | BF29: Total Shareholder's Fund | BI29: =+BI27+BI28 -> 118.600205 | BJ29: 186.3875942 | BK29: 272.2118852 | BL29: 388.8574315 | BM29: 524.594587 | BN29: 700.982384 | BO29: 896.6272803 | BP29: 1128.950812 | BQ29: 1364.479872 | BR29: 1602.925925
B30: VCF-SC OCDs | E30: =(Interest!E53)/100000 -> 336.5 | F30: =(Interest!F53)/100000 -> 336.5 | G30: =(Interest!G53)/100000 -> 336.5 | H30: =(Interest!H53)/100000 -> 288.4285714 | I30: =(Interest!I53)/100000 -> 240.3571429 | J30: =(Interest!J53)/100000 -> 192.2857143 | K30: =(Interest!K53)/100000 -> 144.2142857 | L30: =(Interest!L53)/100000 -> 96.14285714 | M30: =(Interest!M53)/100000 -> 48.07142857 | N30: =(Interest!N53)/100000 -> 1.909211278e-13 | P30: VCF-SC OCDs | S30: =(Interest!E53)/100000 -> 336.5 | T30: =(Interest!F53)/100000 -> 336.5 | U30: =(Interest!G53)/100000 -> 336.5 | V30: =(Interest!H53)/100000 -> 288.4285714 | W30: =(Interest!I53)/100000 -> 240.3571429 | X30: =(Interest!J53)/100000 -> 192.2857143 | Y30: =(Interest!K53)/100000 -> 144.2142857 | Z30: =(Interest!L53)/100000 -> 96.14285714 | AA30: =(Interest!M53)/100000 -> 48.07142857 | AB30: =(Interest!N53)/100000 -> 1.909211278e-13 | AD30: VCF-SC OCDs | AG30: =(Interest!E53)/100000 -> 336.5 | AH30: =(Interest!F53)/100000 -> 336.5 | AI30: =(Interest!G53)/100000 -> 336.5 | AJ30: =(Interest!H53)/100000 -> 288.4285714 | AK30: =(Interest!I53)/100000 -> 240.3571429 | AL30: =(Interest!J53)/100000 -> 192.2857143 | AM30: =(Interest!K53)/100000 -> 144.2142857 | AN30: =(Interest!L53)/100000 -> 96.14285714 | AO30: =(Interest!M53)/100000 -> 48.07142857 | AP30: =(Interest!N53)/100000 -> 1.909211278e-13 | AR30: VCF-SC OCDs | AU30: =(Interest!E53)/100000 -> 336.5 | AV30: =(Interest!F53)/100000 -> 336.5 | AW30: =(Interest!G53)/100000 -> 336.5 | AX30: =(Interest!H53)/100000 -> 288.4285714 | AY30: =(Interest!I53)/100000 -> 240.3571429 | AZ30: =(Interest!J53)/100000 -> 192.2857143 | BA30: =(Interest!K53)/100000 -> 144.2142857 | BB30: =(Interest!L53)/100000 -> 96.14285714 | BC30: =(Interest!M53)/100000 -> 48.07142857 | BD30: =(Interest!N53)/100000 -> 1.909211278e-13 | BF30: VCF-SC OCDs | BI30: =(Interest!E53)/100000 -> 336.5 | BJ30: =(Interest!F53)/100000 -> 336.5 | BK30: =(Interest!G53)/100000 -> 336.5 | BL30: =(Interest!H53)/100000 -> 288.4285714 | BM30: =(Interest!I53)/100000 -> 240.3571429 | BN30: =(Interest!J53)/100000 -> 192.2857143 | BO30: =(Interest!K53)/100000 -> 144.2142857 | BP30: =(Interest!L53)/100000 -> 96.14285714 | BQ30: =(Interest!M53)/100000 -> 48.07142857 | BR30: =(Interest!N53)/100000 -> 1.909211278e-13
B31: Long Term Borrowring | E31: 0 | F31: 0 | G31: 0 | H31: 0 | I31: 0 | J31: 0 | K31: 0 | L31: 0 | M31: 0 | N31: 0
B32: Short Term Borrowings | E32: 0 | F32: 0 | G32: 0 | H32: 0 | I32: 0 | J32: 0 | K32: 0 | L32: 0 | M32: 0 | N32: 0
B33: Creditors | E33: =E7*25% -> 565.95 | F33: 1027.62 | G33: 1141.8 | H33: 1266.87 | I33: 1382.04 | J33: 1510.08 | K33: 1626.24 | L33: 1757.25 | M33: 1757.25 | N33: 1757.25 | P33: Creditors | S33: =S7*25% -> 565.95 | T33: =T7*25% -> 1027.62 | U33: 1141.8 | V33: 1266.87 | W33: 1382.04 | X33: 1510.08 | Y33: 1626.24 | Z33: 1757.25 | AA33: 1757.25 | AB33: 1757.25 | AD33: Creditors | AG33: =AG7*25% -> 565.95 | AH33: =AH7*25% -> 1027.62 | AI33: 1141.8 | AJ33: 1266.87 | AK33: 1382.04 | AL33: 1510.08 | AM33: 1626.24 | AN33: 1757.25 | AO33: 1757.25 | AP33: 1757.25 | AR33: Creditors | AU33: =AU7*25% -> 565.95 | AV33: =AV7*25% -> 1027.62 | AW33: 1141.8 | AX33: 1266.87 | AY33: 1382.04 | AZ33: 1510.08 | BA33: 1626.24 | BB33: 1757.25 | BC33: 1757.25 | BD33: 1757.25 | BF33: Creditors | BI33: =BI7*25% -> 565.95 | BJ33: =BJ7*25% -> 1027.62 | BK33: 1141.8 | BL33: 1266.87 | BM33: 1382.04 | BN33: 1510.08 | BO33: 1626.24 | BP33: 1757.25 | BQ33: 1757.25 | BR33: 1757.25
B34: Total Liabilities | E34: =+E29+E30+E33 -> 1098.180728 | F34: 1766.327718 | G34: 2120.246371 | H34: 2484.481684 | I34: 2873.265375 | J34: 3332.642561 | K34: 3814.88562 | L34: 4366.126189 | M34: 4789.562285 | N34: 5215.915374 | P34: Total Liabilities | S34: =+S29+S30+S33 -> 1184.488376 | T34: 2006.464391 | U34: 2530.8449 | V34: 3084.35301 | W34: 3679.240338 | X34: 4364.126132 | Y34: 5088.906651 | Z34: 5902.683679 | AA34: 6588.656235 | AB34: 7277.545784 | AD34: Total Liabilities | AG34: =+AG29+AG30+AG33 -> 1011.87308 | AH34: 1526.191045 | AI34: 1709.647842 | AJ34: 1884.610359 | AK34: 2067.290412 | AL34: 2301.158989 | AM34: 2540.864589 | AN34: 2829.568698 | AO34: 2990.468334 | AP34: 3154.284965 | AR34: Total Liabilities | AU34: =+AU29+AU30+AU33 -> 1175.311251 | AV34: 1982.147842 | AW34: 2489.980857 | AX34: 3024.807366 | AY34: 3599.53902 | AZ34: 4261.937023 | BA34: 4962.689674 | BB34: 5749.908708 | BC34: 6409.323269 | BD34: 7071.654823 | BF34: Total Liabilities | BI34: =+BI29+BI30+BI33 -> 1021.050205 | BJ34: 1550.507594 | BK34: 1750.511885 | BL34: 1944.156003 | BM34: 2146.99173 | BN34: 2403.348098 | BO34: 2667.081566 | BP34: 2982.34367 | BQ34: 3169.801301 | BR34: 3360.175925
B35: Assets | P35: Assets | AD35: Assets | AR35: Assets | BF35: Assets
B36: Previous Assets( If any Held with the company) | D36: =Summary!C12 -> 50 | P36: Previous Assets( If any Held with the company) | R36: =Summary!C12 -> 50 | AD36: Previous Assets( If any Held with the company) | AF36: =Summary!C12 -> 50 | AR36: Previous Assets( If any Held with the company) | AT36: =Summary!C12 -> 50 | BF36: Previous Assets( If any Held with the company) | BH36: =Summary!C12 -> 50
B37: Land Cost (if available in the name of the company) *( as mentioned in Project Cost Screen) | D37: =Summary!C18 -> 50 | P37: Land Cost (if available in the name of the company) *( as mentioned in Project Cost Screen) | R37: =Summary!C18 -> 50 | AD37: Land Cost (if available in the name of the company) *( as mentioned in Project Cost Screen) | AF37: =Summary!C18 -> 50 | AR37: Land Cost (if available in the name of the company) *( as mentioned in Project Cost Screen) | AT37: =Summary!C18 -> 50 | BF37: Land Cost (if available in the name of the company) *( as mentioned in Project Cost Screen) | BH37: =Summary!C18 -> 50
B38: Total Fixed Cost ( including Land Cost if any) *( as mentioned in Project Cost Screen) | D38: =Summary!C34 -> 400 | P38: Total Fixed Cost ( including Land Cost if any) *( as mentioned in Project Cost Screen) | R38: =D38 -> 400 | AD38: Total Fixed Cost ( including Land Cost if any) *( as mentioned in Project Cost Screen) | AF38: =R38 -> 400 | AR38: Total Fixed Cost ( including Land Cost if any) *( as mentioned in Project Cost Screen) | AT38: =AF38 -> 400 | BF38: Total Fixed Cost ( including Land Cost if any) *( as mentioned in Project Cost Screen) | BH38: =AT38 -> 400
B39: Net Fixed Cost(excluding Land) | D39: =D38-D37 -> 350 | P39: Net Fixed Cost(excluding Land) | R39: =R38-R37 -> 350 | AD39: Net Fixed Cost(excluding Land) | AF39: =AF38-AF37 -> 350 | AR39: Net Fixed Cost(excluding Land) | AT39: =AT38-AT37 -> 350 | BF39: Net Fixed Cost(excluding Land) | BH39: =BH38-BH37 -> 350
B40: Net Block | D40: =D39+D36 -> 400 | E40: =D40*0.85 -> 340 | F40: 289 | G40: 245.65 | H40: 208.8025 | I40: 177.482125 | J40: 150.8598062 | K40: 128.2308353 | L40: 108.99621 | M40: 92.64677851 | N40: 78.74976174 | P40: Net Block | R40: =R39+R36 -> 400 | S40: =R40*0.85 -> 340 | T40: =S40*0.85 -> 289 | U40: =T40*0.85 -> 245.65 | V40: =U40*0.85 -> 208.8025 | W40: =V40*0.85 -> 177.482125 | X40: =W40*0.85 -> 150.8598062 | Y40: =X40*0.85 -> 128.2308353 | Z40: =Y40*0.85 -> 108.99621 | AA40: =Z40*0.85 -> 92.64677851 | AB40: =AA40*0.85 -> 78.74976174 | AD40: Net Block | AF40: =AF39+AF36 -> 400 | AG40: =AF40*0.85 -> 340 | AH40: =AG40*0.85 -> 289 | AI40: =AH40*0.85 -> 245.65 | AJ40: =AI40*0.85 -> 208.8025 | AK40: =AJ40*0.85 -> 177.482125 | AL40: =AK40*0.85 -> 150.8598062 | AM40: =AL40*0.85 -> 128.2308353 | AN40: =AM40*0.85 -> 108.99621 | AO40: =AN40*0.85 -> 92.64677851 | AP40: =AO40*0.85 -> 78.74976174 | AR40: Net Block | AT40: =AT39+AT36 -> 400 | AU40: =AT40*0.85 -> 340 | AV40: =AU40*0.85 -> 289 | AW40: =AV40*0.85 -> 245.65 | AX40: =AW40*0.85 -> 208.8025 | AY40: =AX40*0.85 -> 177.482125 | AZ40: =AY40*0.85 -> 150.8598062 | BA40: =AZ40*0.85 -> 128.2308353 | BB40: =BA40*0.85 -> 108.99621 | BC40: =BB40*0.85 -> 92.64677851 | BD40: =BC40*0.85 -> 78.74976174 | BF40: Net Block | BH40: =BH39+BH36 -> 400 | BI40: =BH40*0.85 -> 340 | BJ40: =BI40*0.85 -> 289 | BK40: =BJ40*0.85 -> 245.65 | BL40: =BK40*0.85 -> 208.8025 | BM40: =BL40*0.85 -> 177.482125 | BN40: =BM40*0.85 -> 150.8598062 | BO40: =BN40*0.85 -> 128.2308353 | BP40: =BO40*0.85 -> 108.99621 | BQ40: =BP40*0.85 -> 92.64677851 | BR40: =BQ40*0.85 -> 78.74976174
B41: Preliminary Expenses(Pre-Operative Expenditure) | E41: =D14-E14 -> 40 | F41: =E41-F14 -> 30 | G41: =F41-G14 -> 20 | H41: =G41-H14 -> 10 | I41: =H41-I14 -> 0 | P41: Preliminary Expenses(Pre-Operative Expenditure) | S41: =R14-S14 -> 40 | T41: =S41-T14 -> 30 | U41: =T41-U14 -> 20 | V41: =U41-V14 -> 10 | W41: =V41-W14 -> 0 | AD41: Preliminary Expenses(Pre-Operative Expenditure) | AG41: =AF14-AG14 -> 40 | AH41: =AG41-AH14 -> 30 | AI41: =AH41-AI14 -> 20 | AJ41: =AI41-AJ14 -> 10 | AK41: =AJ41-AK14 -> 0 | AR41: Preliminary Expenses(Pre-Operative Expenditure) | AU41: =AT14-AU14 -> 40 | AV41: =AU41-AV14 -> 30 | AW41: =AV41-AW14 -> 20 | AX41: =AW41-AX14 -> 10 | AY41: =AX41-AY14 -> 0 | BF41: Preliminary Expenses(Pre-Operative Expenditure) | BI41: =BH14-BI14 -> 40 | BJ41: =BI41-BJ14 -> 30 | BK41: =BJ41-BK14 -> 20 | BL41: =BK41-BL14 -> 10 | BM41: =BL41-BM14 -> 0
B42: Cash and Bank Balances | E42: 103.435728 | F42: 344.083718 | G42: 630.836371 | H42: 907.2461845 | I42: 1215.54725 | J42: 1563.012754 | K42: 1944.794785 | L42: 2372.874979 | M42: 2812.660506 | N42: 3252.910613 | P42: Cash and Bank Balances | S42: =E42 -> 103.435728 | T42: 344.083718 | U42: 630.836371 | V42: 907.2461845 | W42: 1215.54725 | X42: 1563.012754 | Y42: 1944.794785 | Z42: 2372.874979 | AA42: 2812.660506 | AB42: 3252.910613 | AD42: Cash and Bank Balances | AG42: =S42 -> 103.435728 | AH42: =T42 -> 344.083718 | AI42: =U42 -> 630.836371 | AJ42: =V42 -> 907.2461845 | AK42: =W42 -> 1215.54725 | AL42: =X42 -> 1563.012754 | AM42: =Y42 -> 1944.794785 | AN42: =Z42 -> 2372.874979 | AO42: =AA42 -> 2812.660506 | AP42: =AB42 -> 3252.910613 | AR42: Cash and Bank Balances | AU42: =AG42 -> 103.435728 | AV42: =AH42 -> 344.083718 | AW42: =AI42 -> 630.836371 | AX42: =AJ42 -> 907.2461845 | AY42: =AK42 -> 1215.54725 | AZ42: =AL42 -> 1563.012754 | BA42: =AM42 -> 1944.794785 | BB42: =AN42 -> 2372.874979 | BC42: =AO42 -> 2812.660506 | BD42: =AP42 -> 3252.910613 | BF42: Cash and Bank Balances | BI42: =AU42 -> 103.435728 | BJ42: =AV42 -> 344.083718 | BK42: =AW42 -> 630.836371 | BL42: =AX42 -> 907.2461845 | BM42: =AY42 -> 1215.54725 | BN42: =AZ42 -> 1563.012754 | BO42: =BA42 -> 1944.794785 | BP42: =BB42 -> 2372.874979 | BQ42: =BC42 -> 2812.660506 | BR42: =BD42 -> 3252.910613
B43: Debtors | E43: =E6*15% -> 388.365 | F43: 692.196 | G43: 767.04 | H43: 851.685 | I43: 927.42 | J43: 1014.738 | K43: 1091.364 | L43: 1181.355 | M43: 1181.355 | N43: 1181.355 | P43: Debtors | S43: =S6*15% -> 407.78325 | T43: =T6*15% -> 726.8058 | U43: 805.392 | V43: 894.26925 | W43: 973.791 | X43: 1065.4749 | Y43: 1145.9322 | Z43: 1240.42275 | AA43: 1240.42275 | AB43: 1240.42275 | AD43: Debtors | AG43: =AG6*15% -> 368.94675 | AH43: =AH6*15% -> 657.5862 | AI43: 728.688 | AJ43: 809.10075 | AK43: 881.049 | AL43: 964.0011 | AM43: 1036.7958 | AN43: 1122.28725 | AO43: 1122.28725 | AP43: 1122.28725 | AR43: Debtors | AU43: =AU6*15% -> 388.365 | AV43: =AV6*15% -> 692.196 | AW43: 767.04 | AX43: 851.685 | AY43: 927.42 | AZ43: 1014.738 | BA43: 1091.364 | BB43: 1181.355 | BC43: 1181.355 | BD43: 1181.355 | BF43: Debtors | BI43: =BI6*15% -> 388.365 | BJ43: =BJ6*15% -> 692.196 | BK43: 767.04 | BL43: 851.685 | BM43: 927.42 | BN43: 1014.738 | BO43: 1091.364 | BP43: 1181.355 | BQ43: 1181.355 | BR43: 1181.355
B44: Closing Stock | E44: =E7*10% -> 226.38 | F44: 411.048 | G44: 456.72 | H44: 506.748 | I44: 552.816 | J44: 604.032 | K44: 650.496 | L44: 702.9 | M44: 702.9 | N44: 702.9 | P44: Closing Stock | S44: =S7*10% -> 226.38 | T44: 411.048 | U44: 456.72 | V44: 506.748 | W44: 552.816 | X44: 604.032 | Y44: 650.496 | Z44: 702.9 | AA44: 702.9 | AB44: 702.9 | AD44: Closing Stock | AG44: =AG7*10% -> 226.38 | AH44: 411.048 | AI44: 456.72 | AJ44: 506.748 | AK44: 552.816 | AL44: 604.032 | AM44: 650.496 | AN44: 702.9 | AO44: 702.9 | AP44: 702.9 | AR44: Closing Stock | AU44: =AU7*10% -> 226.38 | AV44: 411.048 | AW44: 456.72 | AX44: 506.748 | AY44: 552.816 | AZ44: 604.032 | BA44: 650.496 | BB44: 702.9 | BC44: 702.9 | BD44: 702.9 | BF44: Closing Stock | BI44: =BI7*10% -> 226.38 | BJ44: 411.048 | BK44: 456.72 | BL44: 506.748 | BM44: 552.816 | BN44: 604.032 | BO44: 650.496 | BP44: 702.9 | BQ44: 702.9 | BR44: 702.9
B45: Total Assets | E45: =+E40+E41+E42+E44+E43 -> 1098.180728 | F45: 1766.327718 | G45: 2120.246371 | H45: 2484.481685 | I45: 2873.265375 | J45: 3332.642561 | K45: 3814.88562 | L45: 4366.126189 | M45: 4789.562285 | N45: 5215.915374 | P45: Total Assets | S45: =+S40+S41+S42+S44+S43 -> 1117.598978 | T45: 1800.937518 | U45: 2158.598371 | V45: 2527.065935 | W45: 2919.636375 | X45: 3383.379461 | Y45: 3869.45382 | Z45: 4425.193939 | AA45: 4848.630035 | AB45: 5274.983124 | AD45: Total Assets | AG45: =+AG40+AG41+AG42+AG44+AG43 -> 1078.762478 | AH45: 1731.717918 | AI45: 2081.894371 | AJ45: 2441.897435 | AK45: 2826.894375 | AL45: 3281.905661 | AM45: 3760.31742 | AN45: 4307.058439 | AO45: 4730.494535 | AP45: 5156.847624 | AR45: Total Assets | AU45: =+AU40+AU41+AU42+AU44+AU43 -> 1098.180728 | AV45: 1766.327718 | AW45: 2120.246371 | AX45: 2484.481685 | AY45: 2873.265375 | AZ45: 3332.642561 | BA45: 3814.88562 | BB45: 4366.126189 | BC45: 4789.562285 | BD45: 5215.915374 | BF45: Total Assets | BI45: =+BI40+BI41+BI42+BI44+BI43 -> 1098.180728 | BJ45: 1766.327718 | BK45: 2120.246371 | BL45: 2484.481685 | BM45: 2873.265375 | BN45: 3332.642561 | BO45: 3814.88562 | BP45: 4366.126189 | BQ45: 4789.562285 | BR45: 5215.915374
B46: Difference | E46: =E34-E45 -> 0 | F46: =F34-F45 -> 0 | G46: 0 | H46: 0 | I46: 0 | J46: 0 | K46: 0 | L46: 0 | M46: 0 | N46: 0
B48: Amount in Rs. Lakhs | P48: Amount in Rs. Lakhs | AD48: Amount in Rs. Lakhs | AR48: Amount in Rs. Lakhs | BF48: Amount in Rs. Lakhs
B49: Particulars | D49: Year 0 | E49: =E22 -> Year 1 | F49: Year 2 | G49: Year 3 | H49: Year 4 | I49: Year 5 | J49: Year 6 | K49: Year 7 | L49: Year 8 | M49: Year 9 | N49: Year 10 | P49: Particulars | R49: Year 0 | S49: =S22 -> Year 1 | T49: Year 2 | U49: Year 3 | V49: Year 4 | W49: Year 5 | X49: Year 6 | Y49: Year 7 | Z49: Year 8 | AA49: Year 9 | AB49: Year 10 | AD49: Particulars | AF49: Year 0 | AG49: =AG22 -> Year 1 | AH49: Year 2 | AI49: Year 3 | AJ49: Year 4 | AK49: Year 5 | AL49: Year 6 | AM49: Year 7 | AN49: Year 8 | AO49: Year 9 | AP49: Year 10 | AR49: Particulars | AT49: Year 0 | AU49: =AU22 -> Year 1 | AV49: Year 2 | AW49: Year 3 | AX49: Year 4 | AY49: Year 5 | AZ49: Year 6 | BA49: Year 7 | BB49: Year 8 | BC49: Year 9 | BD49: Year 10 | BF49: Particulars | BH49: Year 0 | BI49: =BI22 -> Year 1 | BJ49: Year 2 | BK49: Year 3 | BL49: Year 4 | BM49: Year 5 | BN49: Year 6 | BO49: Year 7 | BP49: Year 8 | BQ49: Year 9 | BR49: Year 10
B50: PAT | E50: =E17 -> 81.230728 | F50: 206.47699 | G50: 239.738653 | H50: 287.2367421 | I50: 321.6851192 | J50: 379.4086141 | K50: 414.154488 | L50: 468.3019971 | M50: 471.5075246 | N50: 474.4245184 | P50: PAT | S50: =S17 -> 167.5383765 | T50: 360.3060144 | U50: 410.200509 | V50: 476.5095386 | W50: 527.7887572 | X50: 604.9172223 | Y50: 656.6919476 | Z50: 730.8384566 | AA50: 734.0439841 | AB50: 736.9609779 | AD50: PAT | AG50: =AG17 -> -5.0769205 | AH50: 52.6479656 | AI50: 69.276797 | AJ50: 97.96394557 | AK50: 115.5814812 | AL50: 153.9000059 | AM50: 171.6170284 | AN50: 205.7655376 | AO50: 208.9710651 | AP50: 211.8880589 | AR50: PAT | AU50: =AU17 -> 158.361251 | AV50: 345.1665908 | AW50: 393.653015 | AX50: 457.8279379 | AY50: 507.6330828 | AZ50: 582.4294313 | BA50: 632.6640796 | BB50: 704.2804621 | BC50: 707.4859896 | BD50: 710.4029834 | BF50: PAT | BI50: =BI17 -> 4.100205 | BJ50: 67.7873892 | BK50: 85.824291 | BL50: 116.6455463 | BM50: 135.7371556 | BN50: 176.3877969 | BO50: 195.6448964 | BP50: 232.3235321 | BQ50: 235.5290596 | BR50: 238.4460534
B51: Depreciation | E51: =E11 -> 60 | F51: 51 | G51: 43.35 | H51: 36.8475 | I51: 31.320375 | J51: 26.62231875 | K51: 22.62897094 | L51: 19.2346253 | M51: 16.3494315 | N51: 13.89701678 | P51: Depreciation | S51: =S11 -> 60 | T51: 51 | U51: 43.35 | V51: 36.8475 | W51: 31.320375 | X51: 26.62231875 | Y51: 22.62897094 | Z51: 19.2346253 | AA51: 16.3494315 | AB51: 13.89701678 | AD51: Depreciation | AG51: =AG11 -> 60 | AH51: 51 | AI51: 43.35 | AJ51: 36.8475 | AK51: 31.320375 | AL51: 26.62231875 | AM51: 22.62897094 | AN51: 19.2346253 | AO51: 16.3494315 | AP51: 13.89701678 | AR51: Depreciation | AU51: =AU11 -> 60 | AV51: 51 | AW51: 43.35 | AX51: 36.8475 | AY51: 31.320375 | AZ51: 26.62231875 | BA51: 22.62897094 | BB51: 19.2346253 | BC51: 16.3494315 | BD51: 13.89701678 | BF51: Depreciation | BI51: =BI11 -> 60 | BJ51: 51 | BK51: 43.35 | BL51: 36.8475 | BM51: 31.320375 | BN51: 26.62231875 | BO51: 22.62897094 | BP51: 19.2346253 | BQ51: 16.3494315 | BR51: 13.89701678
B52: Interest on OCDs | E52: =E12 -> 13.46 | F52: 13.46 | G52: 13.46 | H52: 12.73892857 | I52: 10.81607143 | J52: 8.893214286 | K52: 6.970357143 | L52: 5.0475 | M52: 3.124642857 | N52: 1.201785714 | P52: Interest on OCDs | S52: =S12 -> 13.46 | T52: 13.46 | U52: 13.46 | V52: 12.73892857 | W52: 10.81607143 | X52: 8.893214286 | Y52: 6.970357143 | Z52: 5.0475 | AA52: 3.124642857 | AB52: 1.201785714 | AD52: Interest on OCDs | AG52: =AG12 -> 13.46 | AH52: 13.46 | AI52: 13.46 | AJ52: 12.73892857 | AK52: 10.81607143 | AL52: 8.893214286 | AM52: 6.970357143 | AN52: 5.0475 | AO52: 3.124642857 | AP52: 1.201785714 | AR52: Interest on OCDs | AU52: =AU12 -> 13.46 | AV52: 13.46 | AW52: 13.46 | AX52: 12.73892857 | AY52: 10.81607143 | AZ52: 8.893214286 | BA52: 6.970357143 | BB52: 5.0475 | BC52: 3.124642857 | BD52: 1.201785714 | BF52: Interest on OCDs | BI52: =BI12 -> 13.46 | BJ52: 13.46 | BK52: 13.46 | BL52: 12.73892857 | BM52: 10.81607143 | BN52: 8.893214286 | BO52: 6.970357143 | BP52: 5.0475 | BQ52: 3.124642857 | BR52: 1.201785714
B53: =B14 -> Pre-Operative Expenditure( as mentioned in Project Cost Screen) | E53: =E14 -> 10 | F53: 10 | G53: 10 | H53: 10 | I53: 10 | J53: 0 | K53: 0 | L53: 0 | M53: 0 | N53: 0 | P53: =P14 -> Pre-Operative Expenditure( as mentioned in Project Cost Screen) | S53: =S14 -> 10 | T53: 10 | U53: 10 | V53: 10 | W53: 10 | X53: 0 | Y53: 0 | Z53: 0 | AA53: 0 | AB53: 0 | AD53: =AD14 -> Pre-Operative Expenditure( as mentioned in Project Cost Screen) | AG53: =AG14 -> 10 | AH53: 10 | AI53: 10 | AJ53: 10 | AK53: 10 | AL53: 0 | AM53: 0 | AN53: 0 | AO53: 0 | AP53: 0 | AR53: =AR14 -> Pre-Operative Expenditure( as mentioned in Project Cost Screen) | AU53: =AU14 -> 10 | AV53: 10 | AW53: 10 | AX53: 10 | AY53: 10 | AZ53: 0 | BA53: 0 | BB53: 0 | BC53: 0 | BD53: 0 | BF53: =BF14 -> Pre-Operative Expenditure( as mentioned in Project Cost Screen) | BI53: =BI14 -> 10 | BJ53: 10 | BK53: 10 | BL53: 10 | BM53: 10 | BN53: 0 | BO53: 0 | BP53: 0 | BQ53: 0 | BR53: 0
B54: Sources of Funds | E54: =+E50+E51+E52+E53 -> 164.690728 | F54: 280.93699 | G54: 306.548653 | H54: 346.8231706 | I54: 373.8215656 | J54: 414.9241472 | K54: 443.753816 | L54: 492.5841224 | M54: 490.981599 | N54: =+N50+N51+N52+N53 -> 489.5233209 | P54: Sources of Funds | S54: =+S50+S51+S52+S53 -> 250.9983765 | T54: 434.7660144 | U54: 477.010509 | V54: 536.0959671 | W54: 579.9252036 | X54: 640.4327554 | Y54: 686.2912756 | Z54: 755.1205819 | AA54: 753.5180585 | AB54: 752.0597804 | AD54: Sources of Funds | AG54: =+AG50+AG51+AG52+AG53 -> 78.3830795 | AH54: 127.1079656 | AI54: 136.086797 | AJ54: 157.5503741 | AK54: 167.7179276 | AL54: 189.415539 | AM54: 201.2163564 | AN54: 230.0476629 | AO54: 228.4451395 | AP54: 226.9868614 | AR54: Sources of Funds | AU54: =+AU50+AU51+AU52+AU53 -> 241.821251 | AV54: 419.6265908 | AW54: 460.463015 | AX54: 517.4143664 | AY54: 559.7695292 | AZ54: 617.9449644 | BA54: 662.2634076 | BB54: 728.5625874 | BC54: 726.960064 | BD54: 725.5017859 | BF54: Sources of Funds | BI54: =+BI50+BI51+BI52+BI53 -> 87.560205 | BJ54: 142.2473892 | BK54: 152.634291 | BL54: 176.2319748 | BM54: 187.873602 | BN54: 211.90333 | BO54: 225.2442244 | BP54: 256.6056574 | BQ54: 255.003134 | BR54: 253.5448559
B55: Interest on OCDs | E55: =E52 -> 13.46 | F55: 13.46 | G55: 13.46 | H55: 12.73892857 | I55: 10.81607143 | J55: 8.893214286 | K55: 6.970357143 | L55: 5.0475 | M55: 3.124642857 | N55: =N52 -> 1.201785714 | P55: Interest on OCDs | S55: =S52 -> 13.46 | T55: 13.46 | U55: 13.46 | V55: 12.73892857 | W55: 10.81607143 | X55: 8.893214286 | Y55: 6.970357143 | Z55: 5.0475 | AA55: 3.124642857 | AB55: 1.201785714 | AD55: Interest on OCDs | AG55: =AG52 -> 13.46 | AH55: 13.46 | AI55: 13.46 | AJ55: 12.73892857 | AK55: 10.81607143 | AL55: 8.893214286 | AM55: 6.970357143 | AN55: 5.0475 | AO55: 3.124642857 | AP55: 1.201785714 | AR55: Interest on OCDs | AU55: =AU52 -> 13.46 | AV55: 13.46 | AW55: 13.46 | AX55: 12.73892857 | AY55: 10.81607143 | AZ55: 8.893214286 | BA55: 6.970357143 | BB55: 5.0475 | BC55: 3.124642857 | BD55: 1.201785714 | BF55: Interest on OCDs | BI55: =BI52 -> 13.46 | BJ55: 13.46 | BK55: 13.46 | BL55: 12.73892857 | BM55: 10.81607143 | BN55: 8.893214286 | BO55: 6.970357143 | BP55: 5.0475 | BQ55: 3.124642857 | BR55: 1.201785714
B56: Principal Repayment | E56: =Interest!E52/100000 -> 0 | F56: =Interest!F52/100000 -> 0 | G56: =Interest!G52/100000 -> 0 | H56: =Interest!H52/100000 -> 48.07142857 | I56: =Interest!I52/100000 -> 48.07142857 | J56: =Interest!J52/100000 -> 48.07142857 | K56: =Interest!K52/100000 -> 48.07142857 | L56: =Interest!L52/100000 -> 48.07142857 | M56: =Interest!M52/100000 -> 48.07142857 | N56: =Interest!N52/100000 -> 48.07142857 | P56: Principal Repayment | S56: =Interest!E52/100000 -> 0 | T56: =Interest!F52/100000 -> 0 | U56: =Interest!G52/100000 -> 0 | V56: =Interest!H52/100000 -> 48.07142857 | W56: =Interest!I52/100000 -> 48.07142857 | X56: =Interest!J52/100000 -> 48.07142857 | Y56: =Interest!K52/100000 -> 48.07142857 | Z56: =Interest!L52/100000 -> 48.07142857 | AA56: =Interest!M52/100000 -> 48.07142857 | AB56: =Interest!N52/100000 -> 48.07142857 | AD56: Principal Repayment | AG56: =Interest!E52/100000 -> 0 | AH56: =Interest!F52/100000 -> 0 | AI56: =Interest!G52/100000 -> 0 | AJ56: =Interest!H52/100000 -> 48.07142857 | AK56: =Interest!I52/100000 -> 48.07142857 | AL56: =Interest!J52/100000 -> 48.07142857 | AM56: =Interest!K52/100000 -> 48.07142857 | AN56: =Interest!L52/100000 -> 48.07142857 | AO56: =Interest!M52/100000 -> 48.07142857 | AP56: =Interest!N52/100000 -> 48.07142857 | AR56: Principal Repayment | AU56: =Interest!E52/100000 -> 0 | AV56: =Interest!F52/100000 -> 0 | AW56: =Interest!G52/100000 -> 0 | AX56: =Interest!H52/100000 -> 48.07142857 | AY56: =Interest!I52/100000 -> 48.07142857 | AZ56: =Interest!J52/100000 -> 48.07142857 | BA56: =Interest!K52/100000 -> 48.07142857 | BB56: =Interest!L52/100000 -> 48.07142857 | BC56: =Interest!M52/100000 -> 48.07142857 | BD56: =Interest!N52/100000 -> 48.07142857 | BF56: Principal Repayment | BI56: =Interest!E52/100000 -> 0 | BJ56: =Interest!F52/100000 -> 0 | BK56: =Interest!G52/100000 -> 0 | BL56: =Interest!H52/100000 -> 48.07142857 | BM56: =Interest!I52/100000 -> 48.07142857 | BN56: =Interest!J52/100000 -> 48.07142857 | BO56: =Interest!K52/100000 -> 48.07142857 | BP56: =Interest!L52/100000 -> 48.07142857 | BQ56: =Interest!M52/100000 -> 48.07142857 | BR56: =Interest!N52/100000 -> 48.07142857
B57: Application of funds | E57: =+E55+E56 -> 13.46 | F57: 13.46 | G57: 13.46 | H57: 60.81035714 | I57: 58.8875 | J57: 56.96464286 | K57: 55.04178571 | L57: 53.11892857 | M57: 51.19607143 | N57: =+N55+N56 -> 49.27321429 | P57: Application of funds | S57: =+S55+S56 -> 13.46 | T57: =+T55+T56 -> 13.46 | U57: 13.46 | V57: 60.81035714 | W57: 58.8875 | X57: 56.96464286 | Y57: 55.04178571 | Z57: 53.11892857 | AA57: 51.19607143 | AB57: 49.27321429 | AD57: Application of funds | AG57: =+AG55+AG56 -> 13.46 | AH57: =+AH55+AH56 -> 13.46 | AI57: 13.46 | AJ57: 60.81035714 | AK57: 58.8875 | AL57: 56.96464286 | AM57: 55.04178571 | AN57: 53.11892857 | AO57: 51.19607143 | AP57: 49.27321429 | AR57: Application of funds | AU57: =+AU55+AU56 -> 13.46 | AV57: =+AV55+AV56 -> 13.46 | AW57: 13.46 | AX57: 60.81035714 | AY57: 58.8875 | AZ57: 56.96464286 | BA57: 55.04178571 | BB57: 53.11892857 | BC57: 51.19607143 | BD57: 49.27321429 | BF57: Application of funds | BI57: =+BI55+BI56 -> 13.46 | BJ57: =+BJ55+BJ56 -> 13.46 | BK57: 13.46 | BL57: 60.81035714 | BM57: 58.8875 | BN57: 56.96464286 | BO57: 55.04178571 | BP57: 53.11892857 | BQ57: 51.19607143 | BR57: 49.27321429
B58: DSCR | E58: =E54/E57 -> 12.23556672 | F58: 20.87199034 | G58: 22.77478848 | H58: =H54/H57 -> 5.703356911 | I58: 6.348063096 | J58: 7.283889205 | K58: 8.062126079 | L58: 9.273231513 | M58: 9.590220212 | N58: =N54/N57 -> 9.93487695 | P58: DSCR | S58: =S54/S57 -> 18.64772485 | T58: =T54/T57 -> 32.30059542 | U58: 35.43911657 | V58: =V54/V57 -> 8.815866118 | W58: =W54/W57 -> 9.848018741 | X58: 11.24263619 | Y58: 12.46855033 | Z58: 14.21565913 | AA58: 14.71827891 | AB58: =AB54/AB57 -> 15.26305501 | AD58: DSCR | AG58: =AG54/AG57 -> 5.823408581 | AH58: =AH54/AH57 -> 9.44338526 | AI58: 10.1104604 | AJ58: =AJ54/AJ57 -> 2.590847703 | AK58: =AK54/AK57 -> 2.848107452 | AL58: 3.325142219 | AM58: 3.655701824 | AN58: 4.330803897 | AO58: 4.462161512 | AP58: =AP54/AP57 -> 4.606698886 | AR58: DSCR | AU58: =AU54/AU57 -> 17.96591761 | AV58: =AV54/AV57 -> 31.17582398 | AW58: 34.20973366 | AX58: =AX54/AX57 -> 8.508655281 | AY58: =AY54/AY57 -> 9.505744499 | AZ58: 10.84786867 | BA58: 12.03201166 | BB58: 13.7156868 | BC58: 14.19952828 | BD58: =BD54/BD57 -> 14.72406045 | BF58: DSCR | BI58: =BI54/BI57 -> 6.505215825 | BJ58: =BJ54/BJ57 -> 10.5681567 | BK58: 11.33984331 | BL58: =BL54/BL57 -> 2.89805854 | BM58: =BM54/BM57 -> 3.190381694 | BN58: 3.719909743 | BO58: 4.092240496 | BP58: 4.830776227 | BQ58: 4.980912146 | BR58: =BR54/BR57 -> 5.145693447
B59: Average DSCR | E59: =SUM(E54:N54)/SUM(E57:N57) -> 8.937829229 | P59: Average DSCR | S59: =SUM(S54:AB54)/SUM(S57:AB57) -> 13.78106061 | AD59: Average DSCR | AG59: =SUM(AG54:AP54)/SUM(AG57:AP57) -> 4.094597849 | AR59: Average DSCR | AU59: =SUM(AU54:BD54)/SUM(AU57:BD57) -> 13.29737665 | BF59: Average DSCR | BI59: =SUM(BI54:BR54)/SUM(BI57:BR57) -> 4.57828181

Sheet Interest
D1: INTEREST & REPAYMENT CALCUALTIONS
K2: Scheme | L2: Category | M2: % interest p.a.
D3: Interest rate | E3: =IF(Summary!C8="VCF-SC-SC Male",4,IF(Summary!C8="VCF-SC-SC Women / Disabled",3.75,IF(Summary!C8="VCF-BC-BC Male",8,IF(Summary!C8="VCF-BC-BC Women / Disabled",7.75,0)))) -> 4 | F3: % | G3: Avg | H3: Qtr | I3: =MIN(E4/3,40) -> 40 | K3: VCF-SC | L3: SC Male | M3: 4
D4: Project period | E4: =Summary!C13*12 -> 120 | F4: Months | H4: Moratorium(Qtr) | I4: =MIN(ROUNDUP(Summary!C14/3,0),12) -> 12 | L4: SC Women / Disabled | M4: 3.75
B5: Interest during project(Amt) | E5: =SUM(E9:E48) -> 8917250 | H5: Repayment (Qtr) | I5: =I3-I4 -> 28 | K5: VCF-BC | L5: BC Male | M5: 8
D6: Repayment | H6: Installment(Amt) | I6: =D9/I5 -> 1201785.714 | L6: BC Women / Disabled | M6: 7.75
B7: Year | C7: Installment | D7: Loan | E7: Interest | F7: Repayment | G7: Balance left | H7: Interest Accumalated | I7: Pricipal Accumalated
D8: Amount
A9: Year 1 | B9: Q1 | C9: =IF(ISNUMBER(C8)=TRUE,C8+1,IF(COUNTIFS($B$8:$B9,"<>"&"")=$I$4+1,1,"")) ->  | D9: =Summary!C39*100000 -> 33650000 | E9: =D9*$E$3%/4 -> 336500 | F9: =IF(C9="",0,$I$6) -> 0 | G9: =D9-F9 -> 33650000 | H9: =SUM(E9:E12) -> 1346000 | I9: 0
B10: Q2 | C10: =IF(ISNUMBER(C9)=TRUE,C9+1,IF(COUNTIFS($B$8:$B10,"<>"&"")=$I$4+1,1,"")) ->  | D10: =G9 -> 33650000 | E10: 336500 | F10: =IF(C10="",0,$I$6) -> 0 | G10: =D10-F10 -> 33650000
B11: Q3 | C11: =IF(ISNUMBER(C10)=TRUE,C10+1,IF(COUNTIFS($B$8:$B11,"<>"&"")=$I$4+1,1,"")) ->  | D11: 33650000 | E11: 336500 | F11: 0 | G11: =D11-F11 -> 33650000
B12: Q4 | C12: =IF(ISNUMBER(C11)=TRUE,C11+1,IF(COUNTIFS($B$8:$B12,"<>"&"")=$I$4+1,1,"")) ->  | D12: 33650000 | E12: 336500 | F12: 0 | G12: 33650000
A13: Year 2 | B13: Q1 | C13: =IF(ISNUMBER(C12)=TRUE,C12+1,IF(COUNTIFS($B$8:$B13,"<>"&"")=$I$4+1,1,"")) ->  | D13: 33650000 | E13: 336500 | F13: 0 | G13: 33650000 | H13: =SUM(E13:E16) -> 1346000 | I13: 0
B14: Q2 | C14: =IF(ISNUMBER(C13)=TRUE,C13+1,IF(COUNTIFS($B$8:$B14,"<>"&"")=$I$4+1,1,"")) ->  | D14: 33650000 | E14: 336500 | F14: 0 | G14: 33650000
B15: Q3 | C15: =IF(ISNUMBER(C14)=TRUE,C14+1,IF(COUNTIFS($B$8:$B15,"<>"&"")=$I$4+1,1,"")) ->  | D15: 33650000 | E15: 336500 | F15: 0 | G15: 33650000
B16: Q4 | C16: =IF(ISNUMBER(C15)=TRUE,C15+1,IF(COUNTIFS($B$8:$B16,"<>"&"")=$I$4+1,1,"")) ->  | D16: 33650000 | E16: 336500 | F16: 0 | G16: 33650000
A17: Year 3 | B17: Q1 | C17: =IF(ISNUMBER(C16)=TRUE,C16+1,IF(COUNTIFS($B$8:$B17,"<>"&"")=$I$4+1,1,"")) ->  | D17: 33650000 | E17: 336500 | F17: 0 | G17: 33650000 | H17: =SUM(E17:E20) -> 1346000 | I17: 0
B18: Q2 | C18: =IF(ISNUMBER(C17)=TRUE,C17+1,IF(COUNTIFS($B$8:$B18,"<>"&"")=$I$4+1,1,"")) ->  | D18: 33650000 | E18: 336500 | F18: 0 | G18: 33650000
B19: Q3 | C19: =IF(ISNUMBER(C18)=TRUE,C18+1,IF(COUNTIFS($B$8:$B19,"<>"&"")=$I$4+1,1,"")) ->  | D19: 33650000 | E19: 336500 | F19: 0 | G19: 33650000
B20: Q4 | C20: =IF(ISNUMBER(C19)=TRUE,C19+1,IF(COUNTIFS($B$8:$B20,"<>"&"")=$I$4+1,1,"")) ->  | D20: 33650000 | E20: 336500 | F20: 0 | G20: 33650000
A21: Year 4 | B21: Q1 | C21: =IF(ISNUMBER(C20)=TRUE,C20+1,IF(COUNTIFS($B$8:$B21,"<>"&"")=$I$4+1,1,"")) -> 1 | D21: 33650000 | E21: 336500 | F21: 1201785.714 | G21: 32448214.29 | H21: =SUM(E21:E24) -> 1273892.857 | I21: 4807142.857
B22: Q2 | C22: =IF(ISNUMBER(C21)=TRUE,C21+1,IF(COUNTIFS($B$8:$B22,"<>"&"")=$I$4+1,1,"")) -> 2 | D22: 32448214.29 | E22: 324482.1429 | F22: 1201785.714 | G22: 31246428.57
B23: Q3 | C23: =IF(ISNUMBER(C22)=TRUE,C22+1,IF(COUNTIFS($B$8:$B23,"<>"&"")=$I$4+1,1,"")) -> 3 | D23: 31246428.57 | E23: 312464.2857 | F23: 1201785.714 | G23: 30044642.86
B24: Q4 | C24: =IF(ISNUMBER(C23)=TRUE,C23+1,IF(COUNTIFS($B$8:$B24,"<>"&"")=$I$4+1,1,"")) -> 4 | D24: 30044642.86 | E24: 300446.4286 | F24: 1201785.714 | G24: 28842857.14
A25: Year 5 | B25: Q1 | C25: =IF(ISNUMBER(C24)=TRUE,C24+1,IF(COUNTIFS($B$8:$B25,"<>"&"")=$I$4+1,1,"")) -> 5 | D25: 28842857.14 | E25: 288428.5714 | F25: 1201785.714 | G25: 27641071.43 | H25: =SUM(E25:E28) -> 1081607.143 | I25: 4807142.857
B26: Q2 | C26: =IF(ISNUMBER(C25)=TRUE,C25+1,IF(COUNTIFS($B$8:$B26,"<>"&"")=$I$4+1,1,"")) -> 6 | D26: 27641071.43 | E26: 276410.7143 | F26: 1201785.714 | G26: 26439285.71
B27: Q3 | C27: =IF(ISNUMBER(C26)=TRUE,C26+1,IF(COUNTIFS($B$8:$B27,"<>"&"")=$I$4+1,1,"")) -> 7 | D27: 26439285.71 | E27: 264392.8571 | F27: 1201785.714 | G27: 25237500
B28: Q4 | C28: =IF(ISNUMBER(C27)=TRUE,C27+1,IF(COUNTIFS($B$8:$B28,"<>"&"")=$I$4+1,1,"")) -> 8 | D28: 25237500 | E28: 252375 | F28: 1201785.714 | G28: 24035714.29
A29: Year 6 | B29: Q1 | C29: =IF(ISNUMBER(C28)=TRUE,C28+1,IF(COUNTIFS($B$8:$B29,"<>"&"")=$I$4+1,1,"")) -> 9 | D29: 24035714.29 | E29: 240357.1429 | F29: 1201785.714 | G29: 22833928.57 | H29: =SUM(E29:E32) -> 889321.4286 | I29: 4807142.857
B30: Q2 | C30: =IF(ISNUMBER(C29)=TRUE,C29+1,IF(COUNTIFS($B$8:$B30,"<>"&"")=$I$4+1,1,"")) -> 10 | D30: 22833928.57 | E30: 228339.2857 | F30: 1201785.714 | G30: 21632142.86
B31: Q3 | C31: =IF(ISNUMBER(C30)=TRUE,C30+1,IF(COUNTIFS($B$8:$B31,"<>"&"")=$I$4+1,1,"")) -> 11 | D31: 21632142.86 | E31: 216321.4286 | F31: 1201785.714 | G31: 20430357.14
B32: Q4 | C32: =IF(ISNUMBER(C31)=TRUE,C31+1,IF(COUNTIFS($B$8:$B32,"<>"&"")=$I$4+1,1,"")) -> 12 | D32: 20430357.14 | E32: 204303.5714 | F32: 1201785.714 | G32: 19228571.43
A33: Year 7 | B33: Q1 | C33: =IF(ISNUMBER(C32)=TRUE,C32+1,IF(COUNTIFS($B$8:$B33,"<>"&"")=$I$4+1,1,"")) -> 13 | D33: 19228571.43 | E33: 192285.7143 | F33: 1201785.714 | G33: 18026785.71 | H33: =SUM(E33:E36) -> 697035.7143 | I33: 4807142.857
B34: Q2 | C34: =IF(ISNUMBER(C33)=TRUE,C33+1,IF(COUNTIFS($B$8:$B34,"<>"&"")=$I$4+1,1,"")) -> 14 | D34: 18026785.71 | E34: 180267.8571 | F34: 1201785.714 | G34: 16825000
B35: Q3 | C35: =IF(ISNUMBER(C34)=TRUE,C34+1,IF(COUNTIFS($B$8:$B35,"<>"&"")=$I$4+1,1,"")) -> 15 | D35: 16825000 | E35: 168250 | F35: 1201785.714 | G35: 15623214.29
B36: Q4 | C36: =IF(ISNUMBER(C35)=TRUE,C35+1,IF(COUNTIFS($B$8:$B36,"<>"&"")=$I$4+1,1,"")) -> 16 | D36: 15623214.29 | E36: 156232.1429 | F36: 1201785.714 | G36: 14421428.57
A37: Year 8 | B37: Q1 | C37: =IF(ISNUMBER(C36)=TRUE,C36+1,IF(COUNTIFS($B$8:$B37,"<>"&"")=$I$4+1,1,"")) -> 17 | D37: 14421428.57 | E37: 144214.2857 | F37: 1201785.714 | G37: 13219642.86 | H37: =SUM(E37:E40) -> 504750 | I37: 4807142.857
B38: Q2 | C38: =IF(ISNUMBER(C37)=TRUE,C37+1,IF(COUNTIFS($B$8:$B38,"<>"&"")=$I$4+1,1,"")) -> 18 | D38: 13219642.86 | E38: 132196.4286 | F38: 1201785.714 | G38: 12017857.14
B39: Q3 | C39: =IF(ISNUMBER(C38)=TRUE,C38+1,IF(COUNTIFS($B$8:$B39,"<>"&"")=$I$4+1,1,"")) -> 19 | D39: 12017857.14 | E39: 120178.5714 | F39: 1201785.714 | G39: 10816071.43
B40: Q4 | C40: =IF(ISNUMBER(C39)=TRUE,C39+1,IF(COUNTIFS($B$8:$B40,"<>"&"")=$I$4+1,1,"")) -> 20 | D40: 10816071.43 | E40: 108160.7143 | F40: 1201785.714 | G40: 9614285.714
A41: Year 9 | B41: Q1 | C41: =IF(ISNUMBER(C40)=TRUE,C40+1,IF(COUNTIFS($B$8:$B41,"<>"&"")=$I$4+1,1,"")) -> 21 | D41: 9614285.714 | E41: 96142.85714 | F41: 1201785.714 | G41: 8412500 | H41: =SUM(E41:E44) -> 312464.2857 | I41: 4807142.857
B42: Q2 | C42: =IF(ISNUMBER(C41)=TRUE,C41+1,IF(COUNTIFS($B$8:$B42,"<>"&"")=$I$4+1,1,"")) -> 22 | D42: 8412500 | E42: 84125 | F42: 1201785.714 | G42: 7210714.286
B43: Q3 | C43: =IF(ISNUMBER(C42)=TRUE,C42+1,IF(COUNTIFS($B$8:$B43,"<>"&"")=$I$4+1,1,"")) -> 23 | D43: 7210714.286 | E43: 72107.14286 | F43: 1201785.714 | G43: 6008928.571
B44: Q4 | C44: =IF(ISNUMBER(C43)=TRUE,C43+1,IF(COUNTIFS($B$8:$B44,"<>"&"")=$I$4+1,1,"")) -> 24 | D44: 6008928.571 | E44: 60089.28571 | F44: 1201785.714 | G44: 4807142.857
A45: Year 10 | B45: Q1 | C45: =IF(ISNUMBER(C44)=TRUE,C44+1,IF(COUNTIFS($B$8:$B45,"<>"&"")=$I$4+1,1,"")) -> 25 | D45: 4807142.857 | E45: 48071.42857 | F45: 1201785.714 | G45: 3605357.143 | H45: =SUM(E45:E48) -> 120178.5714 | I45: 4807142.857
B46: Q2 | C46: =IF(ISNUMBER(C45)=TRUE,C45+1,IF(COUNTIFS($B$8:$B46,"<>"&"")=$I$4+1,1,"")) -> 26 | D46: 3605357.143 | E46: 36053.57143 | F46: 1201785.714 | G46: 2403571.429
B47: Q3 | C47: =IF(ISNUMBER(C46)=TRUE,C46+1,IF(COUNTIFS($B$8:$B47,"<>"&"")=$I$4+1,1,"")) -> 27 | D47: 2403571.429 | E47: 24035.71429 | F47: 1201785.714 | G47: 1201785.714
B48: Q4 | C48: =IF(ISNUMBER(C47)=TRUE,C47+1,IF(COUNTIFS($B$8:$B48,"<>"&"")=$I$4+1,1,"")) -> 28 | D48: 1201785.714 | E48: 12017.85714 | F48: 1201785.714 | G48: 1.909211278e-08
D50: Project | E50: Year 1 | F50: Year 2 | G50: Year 3 | H50: Year 4 | I50: Year 5 | J50: Year 6 | K50: Year 7 | L50: Year 8 | M50: Year 9 | N50: =A45 -> Year 10
B51: Interest | D51: =E5 -> 8917250 | E51: =H9 -> 1346000 | F51: =H13 -> 1346000 | G51: =H17 -> 1346000 | H51: =H21 -> 1273892.857 | I51: =H25 -> 1081607.143 | J51: =H29 -> 889321.4286 | K51: =H33 -> 697035.7143 | L51: =H37 -> 504750 | M51: =H41 -> 312464.2857 | N51: =H45 -> 120178.5714
B52: Repayments | D52: =SUM(E52:N52) -> 33650000 | E52: =I9 -> 0 | F52: =I13 -> 0 | G52: =I17 -> 0 | H52: =I21 -> 4807142.857 | I52: =I25 -> 4807142.857 | J52: =I29 -> 4807142.857 | K52: =I33 -> 4807142.857 | L52: =I37 -> 4807142.857 | M52: =I41 -> 4807142.857 | N52: =I45 -> 4807142.857
B53: Loan O/s | D53: =D9-D52 -> 0 | E53: =G12 -> 33650000 | F53: =G16 -> 33650000 | G53: =G20 -> 33650000 | H53: =G24 -> 28842857.14 | I53: =G28 -> 24035714.29 | J53: =G32 -> 19228571.43 | K53: =G36 -> 14421428.57 | L53: =G40 -> 9614285.714 | M53: =G44 -> 4807142.857 | N53: =G48 -> 1.909211278e-08

Sheet Redemption Schedule
A1: Please enter Repayment date in Quarter. | F1: Data shown is for your reference only - Please insert data as per your company details | XEW1: 1 | XEX1: 2022-01-01 | XEY1: =DAY(EOMONTH(XEX1,0)) -> 31
F2: Please don’t enter any value in "GREY" marked field | XEW2: 2 | XEX2: 2022-02-01 | XEY2: 28
C3: S no | D3: Repayment Date | E3: No. of OCD’s to be redeemed | F3: Outstanding No. of OCDs of Face Value Rs. 100 /- Each | H3: 9 years quarter increment from today's date | XEW3: 3 | XEX3: 2022-03-01 | XEY3: 31
... 4 more rows

Sheet Payback Period
E2: 1 | F2: =E2+1 -> 2 | G2: =F2+1 -> 3 | H2: 4 | I2: 5 | J2: 6 | K2: 7 | L2: 8 | M2: 9 | N2: 10
D3: Particulars | E3: =Summary!E58 -> Year 1 | F3: =Summary!F58 -> Year 2 | G3: =Summary!G58 -> Year 3 | H3: =Summary!H58 -> Year 4 | I3: =Summary!I58 -> Year 5 | J3: =Summary!J58 -> Year 6 | K3: =Summary!K58 -> Year 7 | L3: =Summary!L58 -> Year 8 | M3: =Summary!M58 -> Year 9 | N3: =Summary!N58 -> Year 10
D4: PAT | E4: =Projections!E17 -> 81.230728 | F4: =Projections!F17 -> 206.47699 | G4: =Projections!G17 -> 239.738653 | H4: =Projections!H17 -> 287.2367421 | I4: =Projections!I17 -> 321.6851192 | J4: =Projections!J17 -> 379.4086141 | K4: =Projections!K17 -> 414.154488 | L4: =Projections!L17 -> 468.3019971 | M4: =Projections!M17 -> 471.5075246 | N4: =Projections!N17 -> 474.4245184
D5: Add: Dep. | E5: =Projections!E11 -> 60 | F5: =Projections!F11 -> 51 | G5: =Projections!G11 -> 43.35 | H5: =Projections!H11 -> 36.8475 | I5: =Projections!I11 -> 31.320375 | J5: =Projections!J11 -> 26.62231875 | K5: =Projections!K11 -> 22.62897094 | L5: =Projections!L11 -> 19.2346253 | M5: =Projections!M11 -> 16.3494315 | N5: =Projections!N11 -> 13.89701678
D6: Add: Int. on TL | E6: =Projections!E12+Projections!E13 -> 13.46 | F6: =Projections!F12+Projections!F13 -> 13.46 | G6: =Projections!G12+Projections!G13 -> 13.46 | H6: =Projections!H12+Projections!H13 -> 12.73892857 | I6: =Projections!I12+Projections!I13 -> 10.81607143 | J6: =Projections!J12+Projections!J13 -> 8.893214286 | K6: =Projections!K12+Projections!K13 -> 6.970357143 | L6: =Projections!L12+Projections!L13 -> 5.0475 | M6: =Projections!M12+Projections!M13 -> 3.124642857 | N6: =Projections!N12+Projections!N13 -> 1.201785714
D7: Cash Inflow | E7: =SUM(E4:E6) -> 154.690728 | F7: =SUM(F4:F6) -> 270.93699 | G7: 296.548653 | H7: 336.8231706 | I7: 363.8215656 | J7: 414.9241472 | K7: 443.753816 | L7: 492.5841224 | M7: 490.981599 | N7: 489.5233209
D8: Cumulative cash flow | E8: =E7 -> 154.690728 | F8: =E8+F7 -> 425.627718 | G8: 722.176371 | H8: 1058.999542 | I8: 1422.821107 | J8: 1837.745254 | K8: 2281.49907 | L8: 2774.083193 | M8: 3265.064792 | N8: 3754.588113
D10: =(Interest!G9/100000)+Projections!D26 -> 337.5 | E10: =E8-$D$10 -> -182.809272 | F10: 88.127718 | G10: 384.676371 | H10: 721.4995416 | I10: 1085.321107 | J10: 1500.245254 | K10: 1943.99907 | L10: 2436.583193 | M10: 2927.564792 | N10: 3417.088113
D11: Full year | E11: =COUNTIFS($E$10:$N$10,"<"&0) -> 1
D12: Partial year | E12: =ABS(((INDEX($E$10:$N$10,1,MATCH(E11,$E$2:$N$2,0)))/(INDEX($E$8:$N$8,1,MATCH(E11+1,$E$2:$N$2,0))/365))/365) -> 0.4295050916
D13: Payback Period (in years) | E13: =E11+E12 -> 1.429505092

Sheet Sensitivity Analysis on DSCR
C3: Scenarios | D3: Details of case | E3: Resulted Average DSCR
C4: Case 1 | D4: No change in Revenue and Expenses | E4: =Projections!E59 -> 8.937829229
C5: Case 2 | D5: Revenue increased by 5% | E5: =Projections!S59 -> 13.78106061
C6: Case 3 | D6: Revenue decreased by 5% | E6: =Projections!AG59 -> 4.094597849
C7: Case 4 | D7: Expenses decreased by 5% | E7: =Projections!AU59 -> 13.29737665
C8: Case 5 | D8: Expenses increased by 5% | E8: =Projections!BI59 -> 4.57828181
